Workbook

Sheet Contents
C2: Contents
F3: Colour Codes | K3: File Name: | M3: =IFERROR(File_name(),"") -> C:\Users\stormy daniels\Documents\Corporate Model for Credit3.xlsm
C4: Company Case | G4: Inputs | I4: 1234567890
D5: HISTORIC BALANCE SHEET | G5: Section Titles | I5: TITLE ROW | K5: Last Save Date | M5: =IFERROR(lastsaved(),"") -> 1/18/2020 10:25:20 AM
D6: INCOME STATEMENT | G6: Sum Column | I6: 1000000000
D7: CASH FLOW STATEMENT - DIRECT | G7: True or 1 | I7: =1=1 -> TRUE | K7: Last Save By | M7: =IFERROR(last_save_by(),"") -> Nelson Mandela
D8: Balance Sheet Items | G8: False or 0 | I8: =1=2 -> FALSE
G9: Other Sheet Links | I9: |||||||||||||||||||
C10: Assumptions and Working
D11: Revenues
D12: Home Power Systems - Cap Exp and Depreciation
D13: Cooking Systems - Cap Exp and Depreciation
D14: Non-Depreciation Cost of Goods Sold
D15: SG&A and Overheads
D16: Working Capital
D17: Financing Assumptions
C19: Forecast
D20: HISTORIC BALANCE SHEET
D21: INCOME STATEMENT
D22: CASH FLOW STATEMENT - DIRECT
D23: FINANCING
D24: Balance Sheet
D25: Financial Ratios for Re-Financing
C27: Analysis
C29: Scenarios
C31: Financial Statements
D32: Month end date
D33: INCOME STATEMENT
D34: BALANCE SHEET
D35: CASH FLOW STATEMENT - DIRECT
C37: Simple Example

Sheet Company Case
C1: Months
C2: Year | G2: 2015 | H2: 2016 | I2: 2017 | J2: 2018 | K2: 2019 | L2: 2020 | M2: 2021 | N2: 2022 | O2: 2023
C3: History | G3: TRUE | H3: TRUE | I3: TRUE | J3: TRUE | K3: TRUE | L3: FALSE | M3: FALSE | N3: FALSE | O3: FALSE
B5: HISTORIC BALANCE SHEET
C6: Intangible fixed assets
C7: Fixtures and Fittings | G7: 65740 | H7: 70255 | I7: 120650 | J7: 240432 | K7: 260023
C8: Accumulated Depreciation F&F | G8: -33527.4 | H8: -36532.6 | I8: -62738 | J8: -125024.64 | K8: -143201
C9: Capitalised Solar Power Costs | G9: 1023121 | H9: 1533234 | I9: 5320431 | J9: 8785039.7 | K9: 8172272.75
C10: Accumulated Depreciation Solar Power | G10: -153468.15 | H10: -229985.1 | I10: -798064.65 | J10: -1317755.955 | K10: -1225840.912
C11: Capitalised Appliances (TV, Fans etc) | G11: 122774.52 | H11: 183988.08 | I11: 638451.72 | J11: 1054204.764 | K11: 980672.73
C12: Accumulated Depreciation on Appliances | G12: -15960.6876 | H12: -23918.4504 | I12: -82998.7236 | J12: -137046.6193 | K12: -127487.4549
C13: Other Assets | G13: 607 | H13: 514 | I13: 424418.8631 | J13: 500000 | K13: 450000
C14: Total Fixed Assets | G14: =SUM(G7:G13) -> 1009286.282 | H14: =SUM(H7:H13) -> 1497554.93 | I14: 5560150.209 | J14: 8999849.25 | K14: 8366439.113
C16: Current Assets:
C17: Cash at Bank | G17: 40321 | H17: 250321 | I17: 810913 | J17: 1234121 | K17: 650342
C18: Inventory and Work in Progress solar | G18: 325634 | H18: 3845321 | I18: 2765333 | J18: 1235653 | K18: 3042321
C19: Trade Receivables | G19: 1142515 | H19: 431317 | I19: 372006 | J19: 500678.01 | K19: 431947.52
C20: Other Current Assets | G20: 55438 | H20: 96026 | I20: 158884.697 | J20: 153267.52 | K20: 805893.58
C21: Total Current Assets | G21: =SUM(G17:G20) -> 1563908 | H21: =SUM(H17:H20) -> 4622985 | I21: =SUM(I17:I20) -> 4107136.697 | J21: =SUM(J17:J20) -> 3123719.53 | K21: =SUM(K17:K20) -> 4930504.1
C22: Total Assets | G22: =G21+G14 -> 2573194.282 | H22: =H21+H14 -> 6120539.93 | I22: =I21+I14 -> 9667286.907 | J22: =J21+J14 -> 12123568.78 | K22: =K21+K14 -> 13296943.21
C24: Total Current Liabilities | G24: 58756 | H24: 70899 | I24: 162789.1325 | J24: 2672584.58 | K24: 3733016.33
C25: Intercompany Company Loans | G25: 2000000 | H25: 2000000 | I25: 2000000 | J25: 2000000 | K25: 2000000
C26: Loans | G26: 0 | H26: 0 | I26: 4522177.637 | J26: 3100000 | K26: 6400000
C27: Total Equity | G27: =G22-G24-G25-G26 -> 514438.2824 | H27: =H22-H24-H25-H26 -> 4049640.93 | I27: 2982320.137 | J27: 4350984.2 | K27: 1163926.883
C28: Total Liabilities and Capital | G28: =SUM(G24:G27) -> 2573194.282 | H28: =SUM(H24:H27) -> 6120539.93 | I28: 9667286.907 | J28: 12123568.78 | K28: 13296943.21
B31: INCOME STATEMENT
C32: Revenue
C33: Welcome pack | L33: 1509280.064 | M33: 1852772.962 | N33: 2808751.459 | O33: 3709084.684
C34: TV | L34: 758479.1593 | M34: 1407523.965 | N34: 2592116.843 | O34: 4068001.058
C35: bPower 50 | L35: 2199476.384 | M35: 2115290.128 | N35: 2343075.504 | O35: 2775433.92
C36: bPower 20 | L36: 211772.96 | M36: 1238306.384 | N36: 2840240.928 | O36: 4226340.16
C37: Upgrades non TV | L37: 234288.2704 | M37: 236524.8509 | N37: 326389.662 | O37: 485359.841
C38: Revenue solar | L38: 4900000 | M38: 6900000 | N38: 10900000 | O38: 15300000
C39: Revenue appliances | L39: 0 | M39: 1600300 | N39: 5200000 | O39: 10192368.31
C40: Total revenue | G40: 490000 | H40: 1160000 | I40: 2340000 | J40: 3250000 | K40: 3480000 | L40: =SUM(L38:L39) -> 4900000 | M40: =SUM(M38:M39) -> 8500300 | N40: 16100000 | O40: 25492368.31
C41: Cost of Sales
C42: Depreciation HPA Assets | G42: 0 | H42: 114878 | I42: 619077.5664 | J42: 905988.596 | K42: 1092404.25 | L42: 1671618.75 | M42: 2190589.704 | N42: 3499384.643 | O42: 5021903.805
C43: Installation | G43: 0 | H43: 41041 | I43: 135303.6467 | J43: 88033.9246 | K43: 46218.26 | L43: 45522 | M43: 72949.2 | N43: 100083.6 | O43: 106746
C44: Import Duties | G44: 0 | H44: 177654 | I44: 495981.9256 | J44: 534335.9831 | K44: 10370.23 | L44: 0 | M44: 0 | N44: 0 | O44: 0
C45: Freight Costs | G45: 0 | H45: 0 | I45: 0 | J45: 29945.5 | K45: 548322.3 | L45: 0 | M45: 0 | N45: 0 | O45: 0
C46: Stock Uplift Adjustment | G46: 0 | H46: 0 | I46: 0 | J46: -522415.4444 | K46: -518009.95 | L46: 0 | M46: 0 | N46: 0 | O46: 0
C47: Repossession | G47: 0 | H47: 7938 | I47: 17217.50909 | J47: 45555.9568 | K47: 14389.03 | L47: 16652.4 | M47: 14314.8 | N47: 12894 | O47: 18194.4
C48: Bad debt written off due to repossession | G48: 0 | H48: 102333 | I48: 139344.2646 | J48: 0 | K48: 0 | L48: 0 | M48: 0 | N48: 0 | O48: 0
C49: Maintenance | G49: 0 | H49: 0 | I49: 164352.2219 | J49: 810494.3875 | K49: 430920.84 | L49: 477414.84 | M49: 515524.0988 | N49: 681038.4625 | O49: 937075.5075
C50: Data | G50: 0 | H50: 61848 | I50: 2706.995188 | J50: 835986.5135 | K50: 592473.2 | L50: 982516.9813 | M50: 1245879.263 | N50: 1778223.006 | O50: 2202928.648
C51: Upfront Sales Cost | G51: 612917 | H51: 62234 | I51: 108733.9384 | J51: 771688.5407 | K51: 146836.84 | L51: 0 | M51: 0 | N51: 0 | O51: 0
C53: Depreciation HPA Assets | D53: Cook | G53: 0 | H53: 0 | I53: 0 | J53: 0 | K53: 0 | L53: 0 | M53: 247683.134 | N53: 726756.2507 | O53: 1189963.842
C54: Gas | D54: Cook | G54: 0 | H54: 0 | I54: 0 | J54: 0 | K54: 0 | L54: 0 | M54: 543348.3333 | N54: 1927460 | O54: 4024310.833
C55: Maintenance | D55: Cook | G55: 0 | H55: 0 | I55: 0 | J55: 0 | K55: 0 | L55: 0 | M55: 11010 | N55: 33820 | O55: 62120
C56: Other cost of sales appliances | D56: Cook | G56: 0 | H56: 0 | I56: 0 | J56: 0 | K56: 0 | L56: 0 | M56: 260052.3665 | N56: 774890.7488 | O56: 1343599.72
C57: Cost of Sales | G57: 612917 | H57: 567926 | I57: 1682718.068 | J57: 3499613.958 | K57: 2363925 | L57: 3193724.972 | M57: 5101350.9 | N57: 9534550.711 | O57: 14906842.75
C59: Home Systems Assets Depreciation | G59: 0 | H59: 114878 | I59: 619077.5664 | J59: 905988.596 | K59: 1092404.25 | L59: 1671618.75 | M59: 2190589.704 | N59: 3499384.643 | O59: 5021903.805
C60: Cash COGS Home Systems | G60: 450000 | H60: 610000 | I60: 1063640.501 | J60: 2593625.362 | K60: 1271520.75 | L60: 1500000 | M60: 1850000 | N60: 2500000 | O60: 3250000
C61: appliancesing Systems Assets Depreciation | G61: 0 | H61: 0 | I61: 0 | J61: 0 | K61: 0 | L61: 0 | M61: 250000 | N61: 720000 | O61: 1180000
C62: Cash COGS appliancesing | G62: 0 | H62: 0 | I62: 0 | J62: 0 | K62: 0 | L62: 0 | M62: 800000 | N62: 2750000 | O62: 5500000
C63: Total COGS | G63: =SUM(G59:G62) -> 450000 | H63: =SUM(H59:H62) -> 724878 | I63: 1682718.068 | J63: 3499613.958 | K63: 2363925 | L63: 3171618.75 | M63: 5090589.704 | N63: 9469384.643 | O63: 14951903.8
C64: Gross profit | G64: =G40-G63 -> 40000 | H64: =H40-H63 -> 435122 | I64: =I40-I63 -> 657281.9321 | J64: -249613.9577 | K64: 1116075 | L64: 1728381.25 | M64: 3409710.296 | N64: 6630615.357 | O64: 10540464.5
C66: SG&A Costs
C67: Salaries & Wages: Shops | G67: 0 | H67: 0 | I67: -801683 | J67: -538661.7516 | K67: -368764.42 | L67: -479780 | M67: -529368 | N67: -583729.65 | O67: -644067.8213
C68: Shops Running Costs | G68: 0 | H68: 0 | I68: -362306.6048 | J68: -357824.4776 | K68: -97990.29 | L68: -60000 | M68: -60000 | N68: -60000 | O68: -60000
C69: Shops customer acquisition | L69: -121680 | M69: -179140 | N69: -243360 | O69: -243360
C70: Salaries & Wages: Logistics center | G70: 0 | H70: 0 | I70: 0 | J70: -10810.82 | K70: -108042.54 | L70: -148963.5 | M70: -166830.3 | N70: -213720.7275 | O70: -279651.5229
C71: Logistics center Running Costs | G71: 0 | H71: 0 | I71: 0 | J71: -18593.46 | K71: -146985.44 | L71: -170970 | M71: -175244.25 | N71: -179625.3563 | O71: -184115.9902
C72: Salaries & Wages: Call Center | G72: 0 | H72: 0 | I72: -98529 | J72: -127611.7804 | K72: -120471.76 | L72: -89586 | M72: -131373.9 | N72: -167323.1175 | O72: -175689.2734
C73: Call Center Running Costs | G73: 0 | H73: 0 | I73: 0 | J73: -139520.5962 | K73: -122487.86 | L73: -199718.2199 | M73: -276808.6067 | N73: -431327.9015 | O73: -591266.2546
C74: Sales Commission & Agent Costs | G74: 0 | H74: -65688 | I74: -156554.0715 | J74: -203341.0807 | K74: -153785.14 | L74: -277946.232 | M74: -446972.098 | N74: -698663.4056 | O74: -791892.8932
C75: Other agents costs | G75: 0 | H75: 0 | I75: 523431 | J75: 0 | K75: 0 | L75: -55600 | M75: -55600 | N75: -55600 | O75: -55600
C76: SG&A appliances | L76: 0 | M76: -485532.4122 | N76: -1307636.58 | O76: -2173535.737
C77: Total SG&A | G77: 0 | H77: 240000 | I77: 1390000 | J77: 1400000 | K77: 1100000 | L77: 1600000 | M77: 2500000 | N77: 3950000 | O77: 5200000
C78: Overheads | G78: 0 | H78: 0 | I78: 0 | J78: 0 | K78: 0 | L78: 0 | M78: 0 | N78: 0 | O78: 0
C79: Salaries & Wages: Management & Support | G79: 564371 | H79: 1257925 | I79: 0 | J79: 356660.9618 | K79: 392751.88 | L79: 699904.8 | M79: 734900.04 | N79: 771645.042 | O79: 810227.2941
C80: Staff bonus | G80: 0 | H80: 0 | I80: 0 | J80: 0 | K80: 0 | L80: 113458.744 | M80: 124997.7792 | N80: 138913.483 | O80: 152770.8729
C81: Legal & Professional | G81: 28335 | H81: 52814 | I81: 55768.34595 | J81: 213796.2823 | K81: 107917.49 | L81: 73800 | M81: 75645 | N81: 77536.125 | O81: 79474.52812
C82: Property | G82: 47836 | H82: 58249 | I82: 115980.85 | J82: 65875.06976 | K82: 42616.13 | L82: 67650 | M82: 69341.25 | N82: 71074.78125 | O82: 72851.65078
C83: Travel | G83: 0 | H83: 0 | I83: 77130 | J83: 185892.7247 | K83: 109309.3 | L83: 125280 | M83: 125280 | N83: 125280 | O83: 125280
C84: Training | G84: 0 | H84: 0 | I84: 20361.36558 | J84: 59864.86109 | K84: 24384.86 | L84: 36000 | M84: 39240 | N84: 45000 | O84: 48240
C85: Communications | G85: 4647 | H85: 10125 | I85: 0 | J85: 56239.51365 | K85: 20954.87 | L85: 30750 | M85: 31518.75 | N85: 32306.71875 | O85: 33114.38672
C86: Insurance | G86: 9568 | H86: 35678 | I86: 57584 | J86: 138806.8088 | K86: 95985.38 | L86: 120000 | M86: 130800 | N86: 150000 | O86: 160800
C87: Marketing, Conferences & Events | G87: 0 | H87: 0 | I87: 57799.97761 | J87: 106664.1461 | K87: 92877.39 | L87: 72000 | M87: 168000 | N87: 168000 | O87: 168000
C88: Office Consumables | G88: 0 | H88: 0 | I88: 0 | J88: 4448.922617 | K88: 7214.88 | L88: 8700 | M88: 8700 | N88: 8700 | O88: 8700
C89: Mobile Money Charges | G89: 0 | H89: 0 | I89: 0 | J89: 122010.9466 | K89: 78345.15 | L89: 101205.6899 | M89: 142326.1678 | N89: 227919.3255 | O89: 320432.5304
C90: Bank Charges | G90: 0 | H90: 0 | I90: 0 | J90: 26402.84293 | K90: 24817.55 | L90: 30750 | M90: 31518.75 | N90: 32306.71875 | O90: 33114.38672
C91: Shared services | G91: 0 | H91: 0 | I91: 0 | J91: 0 | K91: 19917.43 | L91: 61500 | M91: 63037.5 | N91: 64613.4375 | O91: 66228.77344
C92: Equipment | G92: 0 | H92: 0 | I92: 0 | J92: 0 | K92: 0 | L92: 12300 | M92: 12607.5 | N92: 12922.6875 | O92: 13245.75469
C93: Other employee costs | G93: 0 | H93: 0 | I93: 0 | J93: 0 | K93: 0 | L93: 30750 | M93: 31518.75 | N93: 32306.71875 | O93: 33114.38672
C94: Other Admin Expenses | G94: 198220 | H94: 382469 | I94: 107605.2793 | J94: 88672.1042 | K94: 66756.07 | L94: 36900 | M94: 37822.5 | N94: 38768.0625 | O94: 39737.26406
C95: Customer write off | D95: Solar | G95: 0 | H95: 0 | I95: 0 | J95: 0 | K95: 0 | L95: 69315.46173 | M95: 98708.61365 | N95: 168384.9487 | O95: 242427.6647
C96: Stock write off | D96: Solar | G96: 0 | H96: 0 | I96: 0 | J96: 84.14 | K96: 651033.95 | L96: 4882.5266 | M96: 17415.6926 | N96: 27432.1614 | O96: 15259.1775
C97: Customer write off | D97: Cook | G97: 0 | H97: 0 | I97: 0 | J97: 0 | K97: 0 | L97: 0 | M97: 8259.416667 | N97: 10719.33333 | O97: 18978.75
C98: Stock write off | D98: Cook | G98: 0 | H98: 0 | I98: 0 | J98: 0 | K98: 0 | L98: 0 | M98: 2350 | N98: 3620 | O98: 2840
C99: Other overheads appliances | D99: Cook | G99: 0 | H99: 0 | I99: 0 | J99: 0 | K99: 0 | L99: 0 | M99: 166605.88 | N99: 246324.37 | O99: 348463.8525
C100: Total Overheads | G100: 852977 | H100: 1780000 | I100: 450000 | J100: 1350000 | K100: 1700000 | L100: 1695000 | M100: 2120000 | N100: 250000 | O100: 2800000
C101: Total Cash Expenses | G101: =G60+G62+G77+G100 -> 1302977 | H101: =H60+H62+H77+H100 -> 2630000 | I101: 2903640.501 | J101: 5343625.362 | K101: 4071520.75 | L101: 4795000 | M101: 7270000 | N101: 9450000 | O101: 16750000
C103: Operating Income After Overheads | G103: =G64-G77-G100 -> -812977 | H103: -1584878 | I103: -1182718.068 | J103: -2999613.958 | K103: -1683925 | L103: -1566618.75 | M103: -1210289.704 | N103: 2430615.357 | O103: 2540464.5
C104: Add back: HPA Depreciation | G104: =G59+G61 -> 0 | H104: 114878 | I104: 619077.5664 | J104: 905988.596 | K104: 1092404.25 | L104: 1671618.75 | M104: 2440589.704 | N104: 4219384.643 | O104: 6201903.805
C105: EBITDA | G105: =G103+G104 -> -812977 | H105: -1470000 | I105: -563640.5015 | J105: -2093625.362 | K105: -591520.75 | L105: 105000 | M105: 1230300 | N105: 6650000 | O105: 8742368.305
C107: Depreciation
C108: Depreciation HPA Assets solar | G108: =G59 -> 0 | H108: 114878 | I108: 619077.5664 | J108: 905988.596 | K108: 1092404.25 | L108: 1671618.75 | M108: 2190589.704 | N108: 3499384.643 | O108: 5021903.805
C109: Depreciation HPA Assets appliances | G109: =G61 -> 0 | H109: 0 | I109: 0 | J109: 0 | K109: 0 | L109: 0 | M109: 250000 | N109: 720000 | O109: 1180000
C110: Depreciation Fixtures and Fittings | F110: -1 | G110: 16812 | H110: 48697 | I110: 22435.20544 | J110: 61854.84548 | K110: 46025.3 | L110: 67565.07937 | M110: 74385.71429 | N110: 77947.61905 | O110: 63277.77778
C111: Total Depreciation | G111: =SUM(G108:G110) -> 16812 | H111: =SUM(H108:H110) -> 163575 | I111: 641512.7718 | J111: 967843.4414 | K111: 1138429.55 | L111: 1739183.83 | M111: 2514975.418 | N111: 4297332.262 | O111: 6265181.583
C113: EBIT | G113: =G105-G111 -> -829789 | H113: =H105-H111 -> -1633575 | I113: -1205153.273 | J113: -3061468.803 | K113: -1729950.3 | L113: -1634183.83 | M113: -1284675.418 | N113: 2352667.738 | O113: 2477186.723
C115: Interest Expense | F115: -1 | G115: 7606 | H115: 16258 | I115: 376495.4988 | J115: 1016009.037 | K115: 1884089.58 | L115: 1281235.313 | M115: 1823616.429 | N115: 2654583.333 | O115: 3486250
C116: Profit before Tax | G116: =G113-G115 -> -837395 | H116: =H113-H115 -> -1649833 | I116: -1581648.772 | J116: -4077477.84 | K116: -3614039.88 | L116: -2915419.143 | M116: -3108291.847 | N116: -301915.5958 | O116: -1009063.277
C117: Tax | L117: 0 | M117: 0 | N117: 0 | O117: 0
C118: Net Income | G118: =G116-G117 -> -837395 | H118: =H116-H117 -> -1649833 | I118: -1581648.772 | J118: -4077477.84 | K118: -3614039.88 | L118: -2915419.143 | M118: -3108291.847 | N118: -301915.5958 | O118: -1009063.277
B120: CASH FLOW STATEMENT - DIRECT
C121: Non-Cash Current Assets | G121: 1523221 | H121: 4406591 | I121: 3274921.697 | J121: 1877962.37 | K121: 4894607.14 | L121: 2591085.947 | M121: 5197153.363 | N121: 7650230.956 | O121: 3511032.024
C122: Current Liabilities | G122: 58756 | H122: 70899 | I122: 162789.1325 | J122: 2672584.58 | K122: 3733016.33 | L122: 2639432.151 | M122: 2746851.742 | N122: 2904956.639 | O122: 3013289.973
C124: Operating Cash Flow
C125: EBITDA | G125: =G105 -> -812977 | H125: -1470000 | I125: -563640.5015 | J125: -2093625.362 | K125: -591520.75 | L125: 105000 | M125: 1230300 | N125: 6650000 | O125: 8742368.305
C126: Less: Changes in Current Assets | G126: =G121-F121 -> 1523221 | H126: =H121-G121 -> 2883370 | I126: -1131669.303 | J126: -1396959.327 | K126: 3016644.77 | L126: -2303521.193 | M126: 2606067.416 | N126: 2453077.593 | O126: -4139198.932
C127: Add: Changes in Current Liabilities | G127: =G122-F122 -> 58756 | H127: 12143 | I127: 91890.13254 | J127: 2509795.447 | K127: 1060431.75 | L127: -1093584.179 | M127: 107419.5906 | N127: 158104.8976 | O127: 108333.3333
C128: Less: Income Tax
C129: Operating Cash Flow | G129: =G125-G126+G127 -> -2277442 | H129: =H125-H126+H127 -> -4341227 | I129: 659918.934 | J129: 1813129.413 | K129: -2547733.77 | L129: 1314937.014 | M129: -1268347.825 | N129: 4355027.305 | O129: 12989900.57
C131: Capital Expenditures
C132: Stock purchases solar | G132: 0 | H132: 0 | I132: 0 | J132: 0 | K132: 0 | L132: 2000000 | M132: 7000000 | N132: 11000000 | O132: 6000000
C133: Maintenance solar | G133: 0 | H133: 0 | I133: 0 | J133: 0 | K133: 0 | L133: 477414.84 | M133: 515524.0988 | N133: 681038.4625 | O133: 937075.5075
C134: Stock purchases appliances | G134: 0 | H134: 0 | I134: 0 | J134: 0 | K134: 0 | L134: 0 | M134: 2466350 | N134: 3558620 | O134: 2802840
C135: Maintenance appliances | G135: 0 | H135: 0 | I135: 0 | J135: 0 | K135: 0 | L135: 0 | M135: 11010 | N135: 33820 | O135: 62120
C136: Fixed asset purchases | G136: 0 | H136: 0 | I136: 0 | J136: 0 | K136: 0 | L136: 119000 | M136: 60000 | N136: 60000 | O136: 60000
C137: Total Capital Expenditures | G137: =SUM(G132:G136) -> 0 | H137: =SUM(H132:H136) -> 0 | I137: 0 | J137: 0 | K137: 0 | L137: 2596414.84 | M137: 10052884.1 | N137: 15333478.46 | O137: 9862035.508
C139: Cash Flow After Capital Expeniture | G139: =G129-G137 -> -2277442 | H139: =H129-H137 -> -4341227 | I139: 659918.934 | J139: 1813129.413 | K139: -2547733.77 | L139: -1281477.826 | M139: -11321231.92 | N139: -10978451.16 | O139: 3127865.063
C141: Less: Interest on Loan
C142: Net Cash Flow
C143: Add: New Loans
C144: Less: Repayment of Loans
C145: Net Cash Flow
C147: Loan Balance
C148: Opening Balance
C149: Add: New Loans
C150: Less: Repayment
C151: Closing Balance
C153: Interest Rate
C154: Interest Expense
B156: Balance Sheet Items
C157: Inventory and Work in Progress solar | G157: 325268 | H157: 3879248 | I157: 2744031 | J157: 1224016.84 | K157: 3656766.04 | L157: 1185037.217 | M157: 2057599.3 | N157: 4143000.06 | O157: 1081427.294
C158: Inventory and Work in Progress appliances | L158: 0 | M158: 1733505.333 | N158: 2101182.167 | O158: 1023556
C159: Trade Receivables | G159: 1142515 | H159: 431317 | I159: 372006 | J159: 500678.01 | K159: 431947.52 | L159: 415756.07 | M159: 415756.07 | N159: 415756.07 | O159: 415756.07
C161: Non-Cash Current Assets | G161: 1523221 | H161: 4406591 | I161: 3274921.697 | J161: 1877962.37 | K161: 4894607.14 | L161: 2591085.947 | M161: 5197153.363 | N161: 7650230.956 | O161: 3511032.024
C162: Other Current Assets | G162: =G161-G157-G158-G159 -> 55438 | H162: 96026 | I162: 158884.697 | J162: 153267.52 | K162: 805893.58 | L162: 990292.66 | M162: 990292.66 | N162: 990292.66 | O162: 990292.66
C164: HPA assets solar | G164: 0 | H164: 1521823 | I164: 5440117.686 | J164: 8785039.7 | K164: 9709426.77 | L164: 12083080.08 | M164: 17135910.66 | N164: 24769752.47 | O164: 31982604.53
C165: HPA assets accumulated depreciation solar | G165: 0 | H165: 0 | I165: 0 | J165: -807448.04 | K165: -2521193.269 | L165: -2929883.623 | M165: -4224780.173 | N165: -6606335.397 | O165: -9969001.15
C166: HPA assets appliances | G166: 0 | H166: 0 | I166: 0 | K166: 0 | L166: 0 | M166: 1322692.083 | N166: 4075736.222 | O166: 7246535.25
C167: HPA assets accumulated depreciation appliances | G167: 0 | H167: 0 | I167: 0 | K167: 0 | L167: 0 | M167: -123189.3764 | N167: -426385.9326 | O167: -928501.3854

Sheet Assumptions and Working
D2: Year | H2: 2015 | I2: 2016 | J2: 2017 | K2: 2018 | L2: 2019 | M2: 2020 | N2: 2021 | O2: 2022 | P2: 2023
D3: History | H3: ='Company Case'!G3*1 -> 1 | I3: ='Company Case'!H3*1 -> 1 | J3: ='Company Case'!I3*1 -> 1 | K3: ='Company Case'!J3*1 -> 1 | L3: ='Company Case'!K3*1 -> 1 | M3: ='Company Case'!L3*1 -> 0 | N3: ='Company Case'!M3*1 -> 0 | O3: ='Company Case'!N3*1 -> 0 | P3: ='Company Case'!O3*1 -> 0
B5: Revenues
D6: Solar Revenue Code | E6: =Scenarios!AA5 -> 1
D7: Solar Revenue - Company | H7: ='Company Case'!G40-'Company Case'!G39 -> 490000 | I7: ='Company Case'!H40-'Company Case'!H39 -> 1160000 | J7: ='Company Case'!I40-'Company Case'!I39 -> 2340000 | K7: ='Company Case'!J40-'Company Case'!J39 -> 3250000 | L7: ='Company Case'!K40-'Company Case'!K39 -> 3480000 | M7: ='Company Case'!L40-'Company Case'!L39 -> 4900000 | N7: ='Company Case'!M40-'Company Case'!M39 -> 6900000 | O7: ='Company Case'!N40-'Company Case'!N39 -> 10900000 | P7: ='Company Case'!O40-'Company Case'!O39 -> 15300000
D8: Company Solar RevenueCase | I8: =I7/H7-1 -> 1.367346939 | J8: =J7/I7-1 -> 1.017241379 | K8: 0.3888888889 | L8: 0.07076923077 | M8: 0.408045977 | N8: 0.4081632653 | O8: 0.5797101449 | P8: 0.4036697248
D9: Bank Solar Revenue Base Case | M9: 0.2 | N9: 0.3 | O9: 0.25 | P9: 0.2
D10: Bank Solar Revenue Low Case | M10: 0.1 | N10: 0.15 | O10: 0.17 | P10: 0.15
D11: Bank Solar Revenue Sensivitiy Case | M11: 0.15 | N11: =M11 -> 0.15 | O11: =N11 -> 0.15 | P11: =O11 -> 0.15
D13: =INDEX(D8:D11,Scenarios!$AA$5) -> Company Solar RevenueCase | H13: =MIN(IF(H3,H8,INDEX(H8:H11,Scenarios!$AA$5)),75%) -> 0.75 | I13: =MIN(IF(I3,I8,INDEX(I8:I11,Scenarios!$AA$5)),75%) -> 0.75 | J13: =MIN(IF(J3,J8,INDEX(J8:J11,Scenarios!$AA$5)),75%) -> 0.75 | K13: =MIN(IF(K3,K8,INDEX(K8:K11,Scenarios!$AA$5)),75%) -> 0.3888888889 | L13: =MIN(IF(L3,L8,INDEX(L8:L11,Scenarios!$AA$5)),75%) -> 0.07076923077 | M13: =MIN(IF(M3,M8,INDEX(M8:M11,Scenarios!$AA$5)),75%) -> 0.408045977 | N13: =MIN(IF(N3,N8,INDEX(N8:N11,Scenarios!$AA$5)),75%) -> 0.4081632653 | O13: =MIN(IF(O3,O8,INDEX(O8:O11,Scenarios!$AA$5)),75%) -> 0.5797101449 | P13: =MIN(IF(P3,P8,INDEX(P8:P11,Scenarios!$AA$5)),75%) -> 0.4036697248 | R13: TRUE | S13: =R13+S12 -> 1
D14: Solar Revenue Projection | H14: =IF(H3,H7,G14*(1+H13)) -> 490000 | I14: 1160000 | J14: 2340000 | K14: 3250000 | L14: 3480000 | M14: 4900000 | N14: 6900000 | O14: 10900000 | P14: 15300000 | R14: TRUE | S14: =IF(R14,S13+1,S13) -> 2
H15: =H3 -> 1 | I15: =I3 -> 1 | J15: 1 | K15: 1 | L15: 1 | M15: 0 | N15: 0 | O15: 0 | P15: 0 | S15: =IF(R15,S14+1,S14) -> 2
D16: appliances Revenue Code | E16: =Scenarios!AA12 -> 1 | S16: =IF(R16,S15+1,S15) -> 2
D17: Revenue from appliances - Company Forecast | H17: ='Company Case'!G39 -> 0 | I17: ='Company Case'!H39 -> 0 | J17: ='Company Case'!I39 -> 0 | K17: ='Company Case'!J39 -> 0 | L17: ='Company Case'!K39 -> 0 | M17: ='Company Case'!L39 -> 0 | N17: ='Company Case'!M39 -> 1600300 | O17: ='Company Case'!N39 -> 5200000 | P17: ='Company Case'!O39 -> 10192368.31 | S17: 2
D18: Company Case appliances Revenue | N18: =N17 -> 1600300 | O18: =O17 -> 5200000 | P18: =P17 -> 10192368.31 | S18: 2
D19: Bank Base Case appliances Revenue | N19: =N17/2 -> 800150 | O19: =O17/2 -> 2600000 | P19: =P17/2 -> 5096184.153 | S19: 2
D20: Bank Low Case appliances Revenue | O20: =N19 -> 800150 | P20: =O19 -> 2600000 | S20: 2
D21: No appliances Case Revenue | N21: 0 | O21: 0 | P21: 0 | S21: 2
S22: 2
D23: =INDEX(D18:D21,Scenarios!$AA$12) -> Company Case appliances Revenue | H23: =IF(H3,H17,INDEX(H18:H21,Scenarios!$AA$12)) -> 0 | I23: =IF(I3,I17,INDEX(I18:I21,Scenarios!$AA$12)) -> 0 | J23: =IF(J3,J17,INDEX(J18:J21,Scenarios!$AA$12)) -> 0 | K23: =IF(K3,K17,INDEX(K18:K21,Scenarios!$AA$12)) -> 0 | L23: =IF(L3,L17,INDEX(L18:L21,Scenarios!$AA$12)) -> 0 | M23: =IF(M3,M17,INDEX(M18:M21,Scenarios!$AA$12)) -> 0 | N23: =IF(N3,N17,INDEX(N18:N21,Scenarios!$AA$12)) -> 1600300 | O23: =IF(O3,O17,INDEX(O18:O21,Scenarios!$AA$12)) -> 5200000 | P23: =IF(P3,P17,INDEX(P18:P21,Scenarios!$AA$12)) -> 10192368.31 | R23: TRUE | S23: 3
S24: 3
B25: Home Power Systems - Cap Exp and Depreciation | S25: 3
D26: Solar Cap Exp Code | E26: 1 | S26: 3
D27: Stock purchases solar | H27: ='Company Case'!G132 -> 0 | I27: ='Company Case'!H132 -> 0 | J27: ='Company Case'!I132 -> 0 | K27: ='Company Case'!J132 -> 0 | L27: ='Company Case'!K132 -> 0 | M27: ='Company Case'!L132 -> 2000000 | N27: ='Company Case'!M132 -> 7000000 | O27: ='Company Case'!N132 -> 11000000 | P27: 6068204.187 | S27: 3
D28: Maintenance solar | H28: ='Company Case'!G133 -> 0 | I28: ='Company Case'!H133 -> 0 | J28: ='Company Case'!I133 -> 0 | K28: ='Company Case'!J133 -> 0 | L28: ='Company Case'!K133 -> 0 | M28: ='Company Case'!L133 -> 477414.84 | N28: ='Company Case'!M133 -> 515524.0988 | O28: ='Company Case'!N133 -> 681038.4625 | P28: 937075.5075 | S28: 3
D29: Total Cap Exp Home Solar | H29: =SUM(H27:H28) -> 0 | I29: =SUM(I27:I28) -> 0 | J29: =-'Financial Statements'!E40 -> 5000623 | K29: =-'Financial Statements'!F40 -> 2634493 | L29: 5266084.188 | M29: 2477414.84 | N29: 7515524.099 | O29: 11681038.46 | P29: 7005279.694 | S29: 3
S30: 3
D31: Cap Exp to Revenues | S31: 3
D32: Company Case Cap Exp | H32: =H29/H7 -> 0 | I32: 0 | J32: 2.137018376 | K32: 0.8106132308 | L32: 1.513242583 | M32: 0.5055948653 | N32: 1.089206391 | O32: 1.071654905 | P32: 0.4578614179 | S32: 3
D33: Bank Base Case Cap Exp | M33: 0.4840520799 | N33: 1 | O33: 1 | P33: 1 | S33: 3
D34: Bank Low Case Cap Exp | M34: 1 | N34: 1 | O34: 1 | P34: 1 | S34: 3
D35: Bank Sensitivity Case Cap Exp | M35: 1.05 | N35: =M35 -> 1.05 | O35: =N35 -> 1.05 | P35: =O35 -> 1.05 | S35: 3
S36: 3
D37: Solar Home Systems Cap Exp % Applied | H37: =MIN(IF(H3,H32,INDEX(H32:H35,Scenarios!$AA$6)),125%) -> 0 | I37: =MIN(IF(I3,I32,INDEX(I32:I35,Scenarios!$AA$6)),125%) -> 0 | J37: =MIN(IF(J3,J32,INDEX(J32:J35,Scenarios!$AA$6)),125%) -> 1.25 | K37: =MIN(IF(K3,K32,INDEX(K32:K35,Scenarios!$AA$6)),125%) -> 0.8106132308 | L37: =MIN(IF(L3,L32,INDEX(L32:L35,Scenarios!$AA$6)),125%) -> 1.25 | M37: =MIN(IF(M3,M32,INDEX(M32:M35,Scenarios!$AA$6)),125%) -> 0.5055948653 | N37: =MIN(IF(N3,N32,INDEX(N32:N35,Scenarios!$AA$6)),125%) -> 1.089206391 | O37: =MIN(IF(O3,O32,INDEX(O32:O35,Scenarios!$AA$6)),125%) -> 1.071654905 | P37: =MIN(IF(P3,P32,INDEX(P32:P35,Scenarios!$AA$6)),125%) -> 0.4578614179 | R37: TRUE | S37: 4
D38: Solar Home Systems Cap Exp Applied | H38: =H37*H14 -> 0 | I38: =I37*I14 -> 0 | J38: 2925000 | K38: 2634493 | L38: 4350000 | M38: 2477414.84 | N38: 7515524.099 | O38: 11681038.46 | P38: 7005279.694 | R38: TRUE | S38: 5
S39: 5
D40: HPA assets solar | H40: 0 | I40: 1521823 | J40: 5440117.686 | K40: 8785039.7 | L40: 9709426.77 | M40: 12083080.08 | N40: 17135910.66 | O40: 24769752.47 | P40: 31982604.53 | S40: 5
D41: Home Systems HPA Assets Depreciation | H41: 0 | I41: 114878 | J41: 619077.5664 | K41: 905988.596 | L41: 1092404.25 | M41: 1671618.75 | N41: 2190589.704 | O41: 3499384.643 | P41: 5021903.805 | S41: 5
D42: Depreciation Rate | H42: 0 | I42: 0 | J42: 0.4067999803 | K42: 0.1665384185 | L42: 0.1174834306 | M42: 0.1822586016 | N42: 0.1896618071 | O42: 0.1841518515 | P42: 0.163491314 | S42: 5
S43: 5
D44: HPA assets solar | S44: 5
D45: Historic Assets | H45: ='Company Case'!G9+'Company Case'!G11 -> 1145895.52 | I45: ='Company Case'!H9+'Company Case'!H11 -> 1717222.08 | J45: ='Company Case'!I9+'Company Case'!I11 -> 5958882.72 | K45: ='Company Case'!J9+'Company Case'!J11 -> 9839244.464 | L45: ='Company Case'!K9+'Company Case'!K11 -> 9152945.48 | M45: ='Company Case'!L9+'Company Case'!L11 -> 0 | N45: ='Company Case'!M9+'Company Case'!M11 -> 0 | O45: ='Company Case'!N9+'Company Case'!N11 -> 0 | P45: ='Company Case'!O9+'Company Case'!O11 -> 0 | S45: 5
D46: Opening Balance | H46: =G48 -> 0 | I46: =H48 -> 1145895.52 | J46: 1717222.08 | K46: 5958882.72 | L46: 9839244.464 | M46: 9152945.48 | N46: 11630360.32 | O46: 19145884.42 | P46: 30826922.88 | S46: 5
D47: Add: Capital Expenditures | H47: =H38 -> 0 | I47: =I38 -> 0 | J47: 2925000 | K47: 2634493 | L47: 4350000 | M47: 2477414.84 | N47: 7515524.099 | O47: 11681038.46 | P47: 7005279.694 | S47: 5
D48: Closing Balance | H48: =IF(H3,H45,H46+H47) -> 1145895.52 | I48: 1717222.08 | J48: 5958882.72 | K48: 9839244.464 | L48: 9152945.48 | M48: 11630360.32 | N48: 19145884.42 | O48: 30826922.88 | P48: 37832202.58 | S48: 5
S49: 5
D50: Depreciation Rate on Opening Balance | H50: =H42 -> 0 | I50: =I42 -> 0 | J50: 0.4067999803 | K50: 0.1665384185 | L50: 0.1174834306 | M50: 0.1822586016 | N50: 0.1896618071 | O50: 0.1841518515 | P50: 0.163491314 | S50: 5
D51: Depreciation Expense | H51: =IF(H3,H41,H50*H46) -> 0 | I51: 114878 | J51: 619077.5664 | K51: 905988.596 | L51: 1092404.25 | M51: 1668203.044 | N51: 2205835.155 | O51: 3525750.065 | P51: 5039934.129 | S51: 5
S52: 5
D53: Historic Accumulated Depreciation | H53: =-'Company Case'!G10-'Company Case'!G12 -> 169428.8376 | I53: =-'Company Case'!H10-'Company Case'!H12 -> 253903.5504 | J53: =-'Company Case'!I10-'Company Case'!I12 -> 881063.3736 | K53: =-'Company Case'!J10-'Company Case'!J12 -> 1454802.574 | L53: =-'Company Case'!K10-'Company Case'!K12 -> 1353328.367 | M53: =-'Company Case'!L10-'Company Case'!L12 -> 0 | N53: =-'Company Case'!M10-'Company Case'!M12 -> 0 | O53: =-'Company Case'!N10-'Company Case'!N12 -> 0 | P53: =-'Company Case'!O10-'Company Case'!O12 -> 0 | S53: 5
D54: Accumulated Depreciation | H54: =IF(H3,H53,G54+H51) -> 169428.8376 | I54: 253903.5504 | J54: 881063.3736 | K54: 1454802.574 | L54: 1353328.367 | M54: 3021531.411 | N54: 5227366.566 | O54: 8753116.631 | P54: 13793050.76 | S54: 5
S55: 5
B56: appliances Systems - Cap Exp and Depreciation | S56: 5
D57: appliances Cap Exp Code | E57: =Scenarios!AA13 -> 1 | S57: 5
D58: Stock purchases appliances | H58: ='Company Case'!G134 -> 0 | I58: ='Company Case'!H134 -> 0 | J58: ='Company Case'!I134 -> 0 | K58: ='Company Case'!J134 -> 0 | L58: ='Company Case'!K134 -> 0 | M58: ='Company Case'!L134 -> 0 | N58: ='Company Case'!M134 -> 2466350 | O58: ='Company Case'!N134 -> 3558620 | P58: ='Company Case'!O134 -> 2802840 | S58: 5
D59: Maintenance appliances | H59: ='Company Case'!G135 -> 0 | I59: ='Company Case'!H135 -> 0 | J59: ='Company Case'!I135 -> 0 | K59: ='Company Case'!J135 -> 0 | L59: ='Company Case'!K135 -> 0 | M59: ='Company Case'!L135 -> 0 | N59: ='Company Case'!M135 -> 11010 | O59: ='Company Case'!N135 -> 33820 | P59: ='Company Case'!O135 -> 62120 | S59: 5
D60: Total Cap Exp Home appliances | H60: =SUM(H58:H59) -> 0 | I60: 0 | J60: 0 | K60: 0 | L60: 0 | M60: 0 | N60: 2477360 | O60: 3592440 | P60: 2864960 | S60: 5
S61: 5
D62: Cap Exp to Revenues | S62: 5
D63: Company Case appliances Cap Exp | H63: =IFERROR(H60/H17,0) -> 0 | I63: =IFERROR(I60/I17,0) -> 0 | J63: 0 | K63: 0 | L63: 0 | M63: 0 | N63: 1.548059739 | O63: 0.6908538462 | P63: 0.2810887435 | S63: 5
D64: Bank Base Case appliances Cap Exp | N64: =N63 -> 1.548059739 | O64: =O63 -> 0.6908538462 | P64: =O64 -> 0.6908538462 | S64: 5
D65: Bank Low Case appliances Cap Exp | S65: 5
D66: Bank Sensitivity Case Cap Exp | S66: 5
S67: 5
D68: =INDEX(D63:D66,Scenarios!$AA$13) -> Company Case appliances Cap Exp | H68: =INDEX(H63:H66,Scenarios!$AA$13) -> 0 | I68: =INDEX(I63:I66,Scenarios!$AA$13) -> 0 | J68: =INDEX(J63:J66,Scenarios!$AA$13) -> 0 | K68: =INDEX(K63:K66,Scenarios!$AA$13) -> 0 | L68: =INDEX(L63:L66,Scenarios!$AA$13) -> 0 | M68: =INDEX(M63:M66,Scenarios!$AA$13) -> 0 | N68: =INDEX(N63:N66,Scenarios!$AA$13) -> 1.548059739 | O68: =INDEX(O63:O66,Scenarios!$AA$13) -> 0.6908538462 | P68: =INDEX(P63:P66,Scenarios!$AA$13) -> 0.2810887435 | R68: TRUE | S68: 6
D69: appliances Revenues | H69: =H23 -> 0 | I69: =I23 -> 0 | J69: 0 | K69: 0 | L69: 0 | M69: 0 | N69: 1600300 | O69: 5200000 | P69: 10192368.31 | S69: 6
D70: appliances Cap Exp Applied | H70: =H68*H69 -> 0 | I70: =I68*I69 -> 0 | J70: 0 | K70: 0 | L70: 0 | M70: 0 | N70: 2477360 | O70: 3592440 | P70: 2864960 | R70: TRUE | S70: 7
S71: 7
D72: HPA assets appliances | H72: 0 | I72: 0 | J72: 0 | K72: 0 | L72: 0 | M72: 0 | N72: 1322692.083 | O72: 4075736.222 | P72: 7246535.25 | S72: 7
D73: Home Systems HPA Assets Depreciation | H73: 0 | I73: 0 | J73: 0 | K73: 0 | L73: 0 | M73: 0 | N73: 247683.134 | O73: 726756.2507 | P73: 1189963.842 | S73: 7
D74: Depreciation Rate (Closing) | H74: 0 | I74: 0 | J74: 0 | K74: 0 | L74: 0 | M74: 0 | N74: 0.09997866036 | O74: 0.1197331462 | P74: 0.133183638 | S74: 7
S75: 7
D76: HPA assets appliances | S76: 7
D77: Opening Balance | H77: =G79 -> 0 | I77: =H79 -> 0 | J77: 0 | K77: 0 | L77: 0 | M77: 0 | N77: 0 | O77: 2477360 | P77: 6069800 | S77: 7
D78: Add: Capital Expenditures | H78: =H70 -> 0 | I78: =I70 -> 0 | J78: 0 | K78: 0 | L78: 0 | M78: 0 | N78: 2477360 | O78: 3592440 | P78: 2864960 | S78: 7
D79: Closing Balance | H79: =SUM(H77:H78) -> 0 | I79: =SUM(I77:I78) -> 0 | J79: 0 | K79: 0 | L79: 0 | M79: 0 | N79: 2477360 | O79: 6069800 | P79: 8934760 | S79: =IF(R79,S78+1,S78) -> 7
S80: 7
D81: Depreciation Rate on Opening Balance | H81: =H74 -> 0 | I81: =I74 -> 0 | J81: 0 | K81: 0 | L81: 0 | M81: 0 | N81: 0.09997866036 | O81: 0.1197331462 | P81: 0.133183638 | S81: 7
D82: Depreciation Expense | H82: =H81*H79 -> 0 | I82: =I81*I79 -> 0 | J82: 0 | K82: 0 | L82: 0 | M82: 0 | N82: 247683.134 | O82: 726756.2507 | P82: 1189963.842 | S82: 7
S83: 7
D84: Accumulated Depreciation | H84: =G84+H82 -> 0 | I84: =H84+I82 -> 0 | J84: 0 | K84: 0 | L84: 0 | M84: 0 | N84: 247683.134 | O84: 974439.3847 | P84: 2164403.226 | S84: 7
S85: 7
B86: Non-Depreciation Cost of Goods Sold | S86: 7
D87: Cash COGS Code Number | E87: 1 | S87: 7
D88: Other COGS Home Systems - Company Case | H88: ='Company Case'!G60 -> 450000 | I88: ='Company Case'!H60 -> 610000 | J88: ='Company Case'!I60 -> 1063640.501 | K88: ='Company Case'!J60 -> 2593625.362 | L88: ='Company Case'!K60 -> 1271520.75 | M88: ='Company Case'!L60 -> 1500000 | N88: ='Company Case'!M60 -> 1850000 | O88: ='Company Case'!N60 -> 2500000 | P88: ='Company Case'!O60 -> 3250000 | S88: 7
D89: Company Case Cash COGS Percent | H89: =H88/H7 -> 0.9183673469 | I89: =I88/I7 -> 0.525862069 | J89: 0.4545472229 | K89: 0.7980385728 | L89: 0.3653795259 | M89: 0.306122449 | N89: 0.268115942 | O89: 0.2293577982 | P89: 0.2124183007 | S89: 7
D90: Bank Base Case Cash COGS Percent | M90: 0.31 | N90: 0.28 | O90: 0.26 | P90: 0.24 | S90: 7
D91: Bank Low Case Cash COGS Percent | M91: 0.31 | N91: =M91 -> 0.31 | O91: 0.31 | P91: 0.31 | S91: 7
D92: Bank Sensitivity Case COGS Percent | M92: 0.31 | N92: 0.31 | O92: 0.31 | P92: 0.31 | S92: 7
S93: 7
D94: =INDEX(D89:D92,Scenarios!$AA$7) -> Company Case Cash COGS Percent | H94: =IF(H3,H89,INDEX(H89:H92,Scenarios!$AA$7)) -> 0.9183673469 | I94: =IF(I3,I89,INDEX(I89:I92,Scenarios!$AA$7)) -> 0.525862069 | J94: =IF(J3,J89,INDEX(J89:J92,Scenarios!$AA$7)) -> 0.4545472229 | K94: =IF(K3,K89,INDEX(K89:K92,Scenarios!$AA$7)) -> 0.7980385728 | L94: =IF(L3,L89,INDEX(L89:L92,Scenarios!$AA$7)) -> 0.3653795259 | M94: =IF(M3,M89,INDEX(M89:M92,Scenarios!$AA$7)) -> 0.306122449 | N94: =IF(N3,N89,INDEX(N89:N92,Scenarios!$AA$7)) -> 0.268115942 | O94: =IF(O3,O89,INDEX(O89:O92,Scenarios!$AA$7)) -> 0.2293577982 | P94: =IF(P3,P89,INDEX(P89:P92,Scenarios!$AA$7)) -> 0.2124183007 | R94: TRUE | S94: 8
D95: Revenue Applied | H95: =H14 -> 490000 | I95: =I14 -> 1160000 | J95: 2340000 | K95: 3250000 | L95: 3480000 | M95: 4900000 | N95: 6900000 | O95: 10900000 | P95: 15300000 | S95: 8
D96: Cash COGS Applied Solar | H96: =H94*H95 -> 450000 | I96: =I94*I95 -> 610000 | J96: 1063640.501 | K96: 2593625.362 | L96: 1271520.75 | M96: 1500000 | N96: 1850000 | O96: 2500000 | P96: 3250000 | R96: TRUE | S96: 9
S97: 9
D98: appliances Cash COGS | E98: =Scenarios!AA14 -> 1 | S98: 9
D99: Other COGS appliances | H99: ='Company Case'!G62 -> 0 | I99: ='Company Case'!H62 -> 0 | J99: ='Company Case'!I62 -> 0 | K99: ='Company Case'!J62 -> 0 | L99: ='Company Case'!K62 -> 0 | M99: ='Company Case'!L62 -> 0 | N99: ='Company Case'!M62 -> 800000 | O99: ='Company Case'!N62 -> 2750000 | P99: ='Company Case'!O62 -> 5500000 | S99: 9
D100: Other COGS appliances as Percent of Revenues | H100: =IFERROR(H99/H17,0) -> 0 | I100: =IFERROR(I99/I17,0) -> 0 | J100: 0 | K100: 0 | L100: 0 | M100: 0 | N100: 0.4999062676 | O100: 0.5288461538 | P100: 0.5396194324 | S100: 9
D101: Bank Base Case COGS appliances Pct | N101: 0.5 | O101: 0.5 | P101: 0.5 | S101: 9
D102: Bank Low Case COGS appliances Pct | N102: 0.53 | O102: 0.53 | P102: 0.53 | S102: 9
D103: Bank Sensitivity Case appliances Pct | N103: 0.53 | O103: =N103 -> 0.53 | P103: =O103 -> 0.53 | S103: 9
S104: 9
D105: =INDEX(D100:D103,Scenarios!$AA$14) -> Other COGS appliances as Percent of Revenues | H105: =IF(H3,H100,INDEX(H100:H103,Scenarios!$AA$14)) -> 0 | I105: =IF(I3,I100,INDEX(I100:I103,Scenarios!$AA$14)) -> 0 | J105: =IF(J3,J100,INDEX(J100:J103,Scenarios!$AA$14)) -> 0 | K105: =IF(K3,K100,INDEX(K100:K103,Scenarios!$AA$14)) -> 0 | L105: =IF(L3,L100,INDEX(L100:L103,Scenarios!$AA$14)) -> 0 | M105: =IF(M3,M100,INDEX(M100:M103,Scenarios!$AA$14)) -> 0 | N105: =IF(N3,N100,INDEX(N100:N103,Scenarios!$AA$14)) -> 0.4999062676 | O105: =IF(O3,O100,INDEX(O100:O103,Scenarios!$AA$14)) -> 0.5288461538 | P105: =IF(P3,P100,INDEX(P100:P103,Scenarios!$AA$14)) -> 0.5396194324 | R105: TRUE | S105: 10
D106: appliances Revenues | H106: =H23 -> 0 | I106: =I23 -> 0 | J106: 0 | K106: 0 | L106: 0 | M106: 0 | N106: 1600300 | O106: 5200000 | P106: 10192368.31 | S106: 10
D107: appliances Cash COGS | H107: =H105*H106 -> 0 | I107: =I105*I106 -> 0 | J107: 0 | K107: 0 | L107: 0 | M107: 0 | N107: 800000 | O107: 2750000 | P107: 5500000 | S107: 10
S108: 10
B109: SG&A and Overheads | S109: 10
D110: SG&A Code | E110: 1 | S110: 10
D111: Total SG&A | H111: ='Company Case'!G77 -> 0 | I111: ='Company Case'!H77 -> 240000 | J111: ='Company Case'!I77 -> 1390000 | K111: ='Company Case'!J77 -> 1400000 | L111: ='Company Case'!K77 -> 1100000 | M111: ='Company Case'!L77 -> 1600000 | N111: ='Company Case'!M77 -> 2500000 | O111: ='Company Case'!N77 -> 3950000 | P111: ='Company Case'!O77 -> 5200000 | S111: 10
D112: Total Revenues | H112: ='Company Case'!G40 -> 490000 | I112: ='Company Case'!H40 -> 1160000 | J112: ='Company Case'!I40 -> 2340000 | K112: ='Company Case'!J40 -> 3250000 | L112: ='Company Case'!K40 -> 3480000 | M112: ='Company Case'!L40 -> 4900000 | N112: ='Company Case'!M40 -> 8500300 | O112: ='Company Case'!N40 -> 16100000 | P112: ='Company Case'!O40 -> 25492368.31 | S112: 10
D113: SG&A as Percent of Revenues | H113: =H111/H112 -> 0 | I113: =I111/I112 -> 0.2068965517 | J113: 0.594017094 | K113: 0.4307692308 | L113: 0.316091954 | M113: 0.3265306122 | N113: 0.2941072668 | O113: 0.2453416149 | P113: 0.203982617 | S113: 10
D114: SG&G Growth Rate | I114: =I112/H112-1 -> 1.367346939 | J114: =J112/I112-1 -> 1.017241379 | K114: 0.3888888889 | L114: 0.07076923077 | M114: 0.408045977 | N114: 0.734755102 | O114: 0.8940507982 | P114: 0.5833769134 | S114: 10
S115: 10
D116: Company Case SG&A Percent | H116: =H113 -> 0 | I116: =I113 -> 0.2068965517 | J116: 0.594017094 | K116: 0.4307692308 | L116: 0.316091954 | M116: 0.3265306122 | N116: 0.2941072668 | O116: 0.2453416149 | P116: 0.203982617 | S116: 10
D117: Bank Base Case SG&A Percent | M117: 0.33 | N117: 0.3 | O117: 0.27 | P117: 0.25 | S117: 10
D118: Bank Low Case SG&A Percent | M118: 0.33 | N118: 0.32 | O118: 0.32 | P118: 0.32 | S118: 10
D119: Bank Sensitivity Case SG&A Percent | M119: 0.32 | N119: =M119 -> 0.32 | O119: =N119 -> 0.32 | P119: =O119 -> 0.32 | S119: 10
S120: 10
D121: =INDEX(D116:D119,Scenarios!$AA$8) -> Company Case SG&A Percent | H121: =IF(H3,H116,INDEX(H116:H119,Scenarios!$AA$8)) -> 0 | I121: =IF(I3,I116,INDEX(I116:I119,Scenarios!$AA$8)) -> 0.2068965517 | J121: =IF(J3,J116,INDEX(J116:J119,Scenarios!$AA$8)) -> 0.594017094 | K121: =IF(K3,K116,INDEX(K116:K119,Scenarios!$AA$8)) -> 0.4307692308 | L121: =IF(L3,L116,INDEX(L116:L119,Scenarios!$AA$8)) -> 0.316091954 | M121: =IF(M3,M116,INDEX(M116:M119,Scenarios!$AA$8)) -> 0.3265306122 | N121: =IF(N3,N116,INDEX(N116:N119,Scenarios!$AA$8)) -> 0.2941072668 | O121: =IF(O3,O116,INDEX(O116:O119,Scenarios!$AA$8)) -> 0.2453416149 | P121: =IF(P3,P116,INDEX(P116:P119,Scenarios!$AA$8)) -> 0.203982617 | R121: TRUE | S121: 11
D122: Total Revenue | H122: =H14+H23 -> 490000 | I122: 1160000 | J122: 2340000 | K122: 3250000 | L122: 3480000 | M122: 4900000 | N122: 8500300 | O122: 16100000 | P122: 25492368.31 | S122: 11
D123: SG&A Projections | H123: =IF(H3,H111,H122*H121) -> 0 | I123: 240000 | J123: 1390000 | K123: 1400000 | L123: 1100000 | M123: 1600000 | N123: 2500000 | O123: 3950000 | P123: 5200000 | R123: TRUE | S123: 12
S124: 12
D125: Overhead Code | E125: =Scenarios!AA9 -> 1 | S125: 12
D126: Total Overheads | H126: ='Company Case'!G100 -> 852977 | I126: ='Company Case'!H100 -> 1780000 | J126: ='Company Case'!I100 -> 450000 | K126: ='Company Case'!J100 -> 1350000 | L126: ='Company Case'!K100 -> 1700000 | M126: ='Company Case'!L100 -> 1695000 | N126: ='Company Case'!M100 -> 2120000 | O126: ='Company Case'!N100 -> 250000 | P126: ='Company Case'!O100 -> 2800000 | S126: 12
D127: Total Revenues | H127: ='Company Case'!G40 -> 490000 | I127: ='Company Case'!H40 -> 1160000 | J127: ='Company Case'!I40 -> 2340000 | K127: ='Company Case'!J40 -> 3250000 | L127: ='Company Case'!K40 -> 3480000 | M127: ='Company Case'!L40 -> 4900000 | N127: ='Company Case'!M40 -> 8500300 | O127: ='Company Case'!N40 -> 16100000 | P127: ='Company Case'!O40 -> 25492368.31 | S127: 12
D128: Overheads as Percent of Revenues | H128: =H126/H127 -> 1.740769388 | I128: =I126/I127 -> 1.534482759 | J128: 0.1923076923 | K128: 0.4153846154 | L128: 0.4885057471 | M128: 0.3459183673 | N128: 0.2494029622 | O128: 0.01552795031 | P128: 0.1098367938 | S128: 12
D129: Overheads Growth Rate | H129: =IFERROR(H126/G126-1,0) -> 0 | I129: =IFERROR(I126/H126-1,0) -> 1.086808906 | J129: -0.7471910112 | K129: 2 | L129: 0.2592592593 | M129: -0.002941176471 | N129: 0.2507374631 | O129: -0.8820754717 | P129: 10.2 | S129: 12
S130: 12
D131: Company Case Overheads | H131: =H128 -> 1.740769388 | I131: =I128 -> 1.534482759 | J131: 0.1923076923 | K131: 0.4153846154 | L131: 0.4885057471 | M131: 0.3459183673 | N131: 0.2494029622 | O131: 0.01552795031 | P131: 0.1098367938 | S131: 12
D132: Bank Base Case Overheads | M132: 0.3 | N132: 0.25 | O132: 0.2 | P132: 0.15 | S132: 12
D133: Bank Low Case Overheads | M133: =M132+5% -> 0.35 | N133: =N132+5% -> 0.3 | O133: =O132+5% -> 0.25 | P133: =P132+5% -> 0.2 | S133: 12
D134: Bank Sensitivity Case Overheads | M134: 0.3 | N134: =$M$134 -> 0.3 | O134: =$M$134 -> 0.3 | P134: =$M$134 -> 0.3 | S134: 12
S135: 12
D136: =INDEX(D131:D134,Scenarios!$AA$9) -> Company Case Overheads | H136: =MIN(50%,IF(H3,H131,INDEX(H131:H134,Scenarios!$AA$9))) -> 0.5 | I136: =MIN(50%,IF(I3,I131,INDEX(I131:I134,Scenarios!$AA$9))) -> 0.5 | J136: =MIN(50%,IF(J3,J131,INDEX(J131:J134,Scenarios!$AA$9))) -> 0.1923076923 | K136: =MIN(50%,IF(K3,K131,INDEX(K131:K134,Scenarios!$AA$9))) -> 0.4153846154 | L136: =MIN(50%,IF(L3,L131,INDEX(L131:L134,Scenarios!$AA$9))) -> 0.4885057471 | M136: =MIN(50%,IF(M3,M131,INDEX(M131:M134,Scenarios!$AA$9))) -> 0.3459183673 | N136: =MIN(50%,IF(N3,N131,INDEX(N131:N134,Scenarios!$AA$9))) -> 0.2494029622 | O136: =MIN(50%,IF(O3,O131,INDEX(O131:O134,Scenarios!$AA$9))) -> 0.01552795031 | P136: =MIN(50%,IF(P3,P131,INDEX(P131:P134,Scenarios!$AA$9))) -> 0.1098367938 | R136: TRUE | S136: 13
D137: Total Revenue | H137: =H14+H23 -> 490000 | I137: =I14+I23 -> 1160000 | J137: 2340000 | K137: 3250000 | L137: 3480000 | M137: 4900000 | N137: 8500300 | O137: 16100000 | P137: 25492368.31 | S137: 13
D138: Projected Overheands | H138: =H136*H137 -> 245000 | I138: =I136*I137 -> 580000 | J138: 450000 | K138: 1350000 | L138: 1700000 | M138: 1695000 | N138: 2120000 | O138: 250000 | P138: 2800000 | R138: TRUE | S138: 14
S139: 14
B140: Working Capital | S140: 14
S141: 14
D142: Debtors | H142: ='Company Case'!G159 -> 1142515 | I142: ='Company Case'!H159 -> 431317 | J142: ='Company Case'!I159 -> 372006 | K142: ='Company Case'!J159 -> 500678.01 | L142: ='Company Case'!K159 -> 431947.52 | M142: ='Company Case'!L159 -> 415756.07 | N142: ='Company Case'!M159 -> 415756.07 | O142: ='Company Case'!N159 -> 415756.07 | P142: ='Company Case'!O159 -> 415756.07 | S142: 14
D143: Total Revenues from Company | H143: ='Company Case'!G40 -> 490000 | I143: ='Company Case'!H40 -> 1160000 | J143: ='Company Case'!I40 -> 2340000 | K143: ='Company Case'!J40 -> 3250000 | L143: ='Company Case'!K40 -> 3480000 | M143: ='Company Case'!L40 -> 4900000 | N143: ='Company Case'!M40 -> 8500300 | O143: ='Company Case'!N40 -> 16100000 | P143: ='Company Case'!O40 -> 25492368.31 | S143: =IF(R143,S142+1,S142) -> 14
D144: Trade Receivables as % of Revenues | H144: =H142/H143 -> 2.331663265 | I144: =I142/I143 -> 0.371825 | J144: 0.1589769231 | K144: 0.1540547723 | L144: 0.1241228506 | M144: 0.08484817755 | N144: 0.04891075256 | O144: 0.02582335839 | P144: 0.01630904061 | S144: 14
D145: Revenues from Model | H145: =H14+H23 -> 490000 | I145: =I14+I23 -> 1160000 | J145: 2340000 | K145: 3250000 | L145: 3480000 | M145: 4900000 | N145: 8500300 | O145: 16100000 | P145: 25492368.31 | S145: 14
D146: Total Receivables in Model | H146: =H144*H145 -> 1142515 | I146: =I144*I145 -> 431317 | J146: 372006 | K146: 500678.01 | L146: 431947.52 | M146: 415756.07 | N146: 415756.07 | O146: 415756.07 | P146: 415756.07 | S146: 14
S147: 14
D148: Inventory Code | E148: 1 | S148: 14
D149: Inventory | H149: ='Company Case'!G157+'Company Case'!G158 -> 325268 | I149: ='Company Case'!H157+'Company Case'!H158 -> 3879248 | J149: ='Company Case'!I157+'Company Case'!I158 -> 2744031 | K149: ='Company Case'!J157+'Company Case'!J158 -> 1224016.84 | L149: ='Company Case'!K157+'Company Case'!K158 -> 3656766.04 | M149: ='Company Case'!L157+'Company Case'!L158 -> 1185037.217 | N149: ='Company Case'!M157+'Company Case'!M158 -> 3791104.633 | O149: ='Company Case'!N157+'Company Case'!N158 -> 6244182.226 | P149: ='Company Case'!O157+'Company Case'!O158 -> 2104983.294 | S149: 14
D150: Total Revenues | H150: =H143 -> 490000 | I150: =I143 -> 1160000 | J150: 2340000 | K150: 3250000 | L150: 3480000 | M150: 4900000 | N150: 8500300 | O150: 16100000 | P150: 25492368.31 | S150: 14
D151: Company Inventory as % of Revenues | H151: =H149/H150 -> 0.6638122449 | I151: =I149/I150 -> 3.34417931 | J151: 1.172662821 | K151: 0.3766205662 | L151: 1.050794839 | M151: 0.24184433 | N151: 0.4459965687 | O151: 0.3878374054 | P151: 0.08257307711 | S151: 14
D152: Bank Base Case Inventory % | M152: 0.3 | N152: 0.3 | O152: 0.3 | P152: 0.3 | S152: 14
D153: Bank Downside Case Inventory % | M153: 0.4 | N153: 0.4 | O153: 0.4 | P153: 0.4 | S153: 14
D154: Sensitivity Cash Inventory % | M154: 0.35 | N154: =M154 -> 0.35 | O154: =N154 -> 0.35 | P154: =O154 -> 0.35 | S154: 14
S155: 14
D156: =INDEX(D151:D154,Scenarios!$AA$10) -> Company Inventory as % of Revenues | H156: =MIN(150%,IF(H3,H151,INDEX(H151:H154,Scenarios!$AA$10))) -> 0.6638122449 | I156: =MIN(150%,IF(I3,I151,INDEX(I151:I154,Scenarios!$AA$10))) -> 1.5 | J156: =MIN(150%,IF(J3,J151,INDEX(J151:J154,Scenarios!$AA$10))) -> 1.172662821 | K156: =MIN(150%,IF(K3,K151,INDEX(K151:K154,Scenarios!$AA$10))) -> 0.3766205662 | L156: =MIN(150%,IF(L3,L151,INDEX(L151:L154,Scenarios!$AA$10))) -> 1.050794839 | M156: =MIN(150%,IF(M3,M151,INDEX(M151:M154,Scenarios!$AA$10))) -> 0.24184433 | N156: =MIN(150%,IF(N3,N151,INDEX(N151:N154,Scenarios!$AA$10))) -> 0.4459965687 | O156: =MIN(150%,IF(O3,O151,INDEX(O151:O154,Scenarios!$AA$10))) -> 0.3878374054 | P156: =MIN(150%,IF(P3,P151,INDEX(P151:P154,Scenarios!$AA$10))) -> 0.08257307711 | R156: TRUE | S156: 15
D157: Total Revenues | H157: =H14+H23 -> 490000 | I157: =I14+I23 -> 1160000 | J157: 2340000 | K157: 3250000 | L157: 3480000 | M157: 4900000 | N157: 8500300 | O157: 16100000 | P157: 25492368.31 | S157: 15
D158: Total Inventories | H158: =H156*H157 -> 325268 | I158: =I156*I157 -> 1740000 | J158: 2744031 | K158: 1224016.84 | L158: 3656766.04 | M158: 1185037.217 | N158: 3791104.633 | O158: 6244182.226 | P158: 2104983.294 | R158: TRUE | S158: 16
S159: 16
D160: Current Liabilities Code | E160: 1 | S160: 16
D161: Current Liabilities | H161: 58756 | I161: 70899 | J161: 162789.1325 | K161: 2672584.58 | L161: 3733016.33 | M161: 2639432.151 | N161: 2746851.742 | O161: 2904956.639 | P161: 3013289.973 | S161: 16
D162: Total Expenses | H162: ='Company Case'!G101 -> 1302977 | I162: ='Company Case'!H101 -> 2630000 | J162: ='Company Case'!I101 -> 2903640.501 | K162: ='Company Case'!J101 -> 5343625.362 | L162: ='Company Case'!K101 -> 4071520.75 | M162: ='Company Case'!L101 -> 4795000 | N162: ='Company Case'!M101 -> 7270000 | O162: ='Company Case'!N101 -> 9450000 | P162: ='Company Case'!O101 -> 16750000 | S162: 16
D163: CL as Percent of Exp Company | H163: =H161/H162 -> 0.0450936586 | I163: =I161/I162 -> 0.02695779468 | J163: 0.0560638042 | K163: 0.5001444523 | L163: 0.9168604458 | M163: 0.5504550889 | N163: 0.3778338021 | O163: 0.307402819 | P163: 0.1798979088 | S163: 16
D164: Bank Base CL as % of Exp | M164: 0.5 | N164: 0.35 | O164: 0.2 | P164: 0.15 | S164: 16
D165: Bank Low CL as % of Exp | M165: 0.4 | N165: 0.3 | O165: 0.1 | P165: 0.1 | S165: 16
D166: Sensitivty CL as % of Exp | M166: 0.4 | N166: =M166 -> 0.4 | O166: =N166 -> 0.4 | P166: =O166 -> 0.4 | S166: 16
S167: 16
D168: =INDEX(D163:D166,Scenarios!$AA$11) -> CL as Percent of Exp Company | H168: =INDEX(H163:H166,Scenarios!$AA$11) -> 0.0450936586 | I168: =INDEX(I163:I166,Scenarios!$AA$11) -> 0.02695779468 | J168: =INDEX(J163:J166,Scenarios!$AA$11) -> 0.0560638042 | K168: =INDEX(K163:K166,Scenarios!$AA$11) -> 0.5001444523 | L168: =INDEX(L163:L166,Scenarios!$AA$11) -> 0.9168604458 | M168: =INDEX(M163:M166,Scenarios!$AA$11) -> 0.5504550889 | N168: =INDEX(N163:N166,Scenarios!$AA$11) -> 0.3778338021 | O168: =INDEX(O163:O166,Scenarios!$AA$11) -> 0.307402819 | P168: =INDEX(P163:P166,Scenarios!$AA$11) -> 0.1798979088 | R168: TRUE | S168: 17
D169: Total Expense in Model | H169: =H96+H107+H123+H138 -> 695000 | I169: =I96+I107+I123+I138 -> 1430000 | J169: 2903640.501 | K169: 5343625.362 | L169: 4071520.75 | M169: 4795000 | N169: 7270000 | O169: 9450000 | P169: 16750000 | S169: 17
D170: Total Current Liabilities to Model | H170: =H168*H169 -> 31340.09273 | I170: =I168*I169 -> 38549.64639 | J170: 162789.1325 | K170: 2672584.58 | L170: 3733016.33 | M170: 2639432.151 | N170: 2746851.742 | O170: 2904956.639 | P170: 3013289.973 | R170: TRUE | S170: 18
S171: 18
B172: Financing Assumptions | S172: 18
S173: 18
D174: Other Loans | H174: ='Company Case'!G26 -> 0 | I174: ='Company Case'!H26 -> 0 | J174: ='Company Case'!I26 -> 4522177.637 | K174: ='Company Case'!J26 -> 3100000 | L174: ='Company Case'!K26 -> 6400000 | M174: ='Company Case'!L26 -> 0 | N174: ='Company Case'!M26 -> 0 | O174: ='Company Case'!N26 -> 0 | P174: ='Company Case'!O26 -> 0 | Q174: ='Company Case'!P26 -> 0 | R174: ='Company Case'!Q26 -> 0 | S174: 18
D175: Interest Expense | H175: ='Company Case'!G115 -> 7606 | I175: ='Company Case'!H115 -> 16258 | J175: ='Company Case'!I115 -> 376495.4988 | K175: ='Company Case'!J115 -> 1016009.037 | L175: ='Company Case'!K115 -> 1884089.58 | M175: ='Company Case'!L115 -> 1281235.313 | N175: ='Company Case'!M115 -> 1823616.429 | O175: ='Company Case'!N115 -> 2654583.333 | P175: ='Company Case'!O115 -> 3486250 | S175: 18
D176: Average Loans | H176: =AVERAGE(G174:H174) -> 0 | I176: =AVERAGE(H174:I174) -> 0 | J176: 2261088.818 | K176: 3811088.818 | L176: 4750000 | M176: 3200000 | N176: 0 | O176: 0 | P176: 0 | S176: 18
D177: Interest Rate | H177: =IFERROR(H175/H176,0) -> 0 | I177: =IFERROR(I175/I176,0) -> 0 | J177: 0.1665107075 | K177: 0.2665928519 | L177: 0.3966504379 | M177: 0.4003860354 | N177: 0 | O177: 0 | P177: 0 | S177: 18
S178: 18
D179: Intercompany Loans | H179: =IF(H3,'Company Case'!G25,'Assumptions and Working'!G179) -> 2000000 | I179: =IF(I3,'Company Case'!H25,'Assumptions and Working'!H179) -> 2000000 | J179: =IF(J3,'Company Case'!I25,'Assumptions and Working'!I179) -> 2000000 | K179: =IF(K3,'Company Case'!J25,'Assumptions and Working'!J179) -> 2000000 | L179: =IF(L3,'Company Case'!K25,'Assumptions and Working'!K179) -> 2000000 | M179: =IF(M3,'Company Case'!L25,'Assumptions and Working'!L179) -> 2000000 | N179: =IF(N3,'Company Case'!M25,'Assumptions and Working'!M179) -> 2000000 | O179: =IF(O3,'Company Case'!N25,'Assumptions and Working'!N179) -> 2000000 | P179: =IF(P3,'Company Case'!O25,'Assumptions and Working'!O179) -> 2000000 | S179: 18
D180: Intercompany Plus Other Loans | H180: =H179+H174 -> 2000000 | I180: =I179+I174 -> 2000000 | J180: 6522177.637 | K180: 5100000 | L180: 8400000 | M180: 2000000 | N180: 2000000 | O180: 2000000 | P180: 2000000 | S180: 18
D181: Interest Expense | H181: =H175 -> 7606 | I181: =I175 -> 16258 | J181: 376495.4988 | K181: 1016009.037 | L181: 1884089.58 | M181: 1281235.313 | N181: 1823616.429 | O181: 2654583.333 | P181: 3486250 | S181: 18
D182: Average Interest Rate | H182: =H181/AVERAGE(G180:H180) -> 0.003803 | I182: =I181/AVERAGE(H180:I180) -> 0.008129 | J182: 0.0883566419 | K182: 0.174839702 | L182: 0.2791243822 | M182: 0.2463914064 | N182: 0.9118082147 | O182: 1.327291667 | P182: 1.743125 | S182: 18
S183: 18
D184: Interest Expense Assumed for Other Loans | E184: 0.1 | H184: =$E$184 -> 0.1 | I184: =$E$184 -> 0.1 | J184: 0.1 | K184: 0.1 | L184: 0.1 | M184: 0.1 | N184: 0.1 | O184: 0.1 | P184: 0.1 | S184: 18
D185: Interest Expense on Other Loans | H185: =IF(H3,H181,H184*H174) -> 7606 | I185: 16258 | J185: 376495.4988 | K185: 1016009.037 | L185: 1884089.58 | M185: 0 | N185: 0 | O185: 0 | P185: 0 | S185: 18
C188: 1 | D188: =INDEX(D:D,$E188) -> Company Solar RevenueCase | E188: =MATCH(C188,S:S,0) -> 13 | H188: =INDEX(H:H,$E188) -> 0.75 | I188: =INDEX(I:I,$E188) -> 0.75 | J188: =INDEX(J:J,$E188) -> 0.75 | K188: =INDEX(K:K,$E188) -> 0.3888888889 | L188: =INDEX(L:L,$E188) -> 0.07076923077 | M188: =INDEX(M:M,$E188) -> 0.408045977 | N188: =INDEX(N:N,$E188) -> 0.4081632653 | O188: =INDEX(O:O,$E188) -> 0.5797101449 | P188: =INDEX(P:P,$E188) -> 0.4036697248
C189: 2 | D189: =INDEX(D:D,$E189) -> Solar Revenue Projection | E189: 14 | H189: =INDEX(H:H,$E189) -> 490000 | I189: =INDEX(I:I,$E189) -> 1160000 | J189: =INDEX(J:J,$E189) -> 2340000 | K189: =INDEX(K:K,$E189) -> 3250000 | L189: =INDEX(L:L,$E189) -> 3480000 | M189: =INDEX(M:M,$E189) -> 4900000 | N189: =INDEX(N:N,$E189) -> 6900000 | O189: =INDEX(O:O,$E189) -> 10900000 | P189: =INDEX(P:P,$E189) -> 15300000
C190: 3 | D190: =INDEX(D:D,$E190) -> Company Case appliances Revenue | E190: =MATCH(C190,S:S,0) -> 23 | H190: =INDEX(H:H,$E190) -> 0 | I190: =INDEX(I:I,$E190) -> 0 | J190: =INDEX(J:J,$E190) -> 0 | K190: =INDEX(K:K,$E190) -> 0 | L190: =INDEX(L:L,$E190) -> 0 | M190: =INDEX(M:M,$E190) -> 0 | N190: =INDEX(N:N,$E190) -> 1600300 | O190: =INDEX(O:O,$E190) -> 5200000 | P190: =INDEX(P:P,$E190) -> 10192368.31
C191: 4 | D191: =INDEX(D:D,$E191) -> Solar Home Systems Cap Exp % Applied | E191: 37 | H191: =INDEX(H:H,$E191) -> 0 | I191: =INDEX(I:I,$E191) -> 0 | J191: =INDEX(J:J,$E191) -> 1.25 | K191: =INDEX(K:K,$E191) -> 0.8106132308 | L191: =INDEX(L:L,$E191) -> 1.25 | M191: =INDEX(M:M,$E191) -> 0.5055948653 | N191: =INDEX(N:N,$E191) -> 1.089206391 | O191: =INDEX(O:O,$E191) -> 1.071654905 | P191: =INDEX(P:P,$E191) -> 0.4578614179
C192: 5 | D192: =INDEX(D:D,$E192) -> Solar Home Systems Cap Exp Applied | E192: 38 | H192: =INDEX(H:H,$E192) -> 0 | I192: =INDEX(I:I,$E192) -> 0 | J192: =INDEX(J:J,$E192) -> 2925000 | K192: =INDEX(K:K,$E192) -> 2634493 | L192: =INDEX(L:L,$E192) -> 4350000 | M192: =INDEX(M:M,$E192) -> 2477414.84 | N192: =INDEX(N:N,$E192) -> 7515524.099 | O192: =INDEX(O:O,$E192) -> 11681038.46 | P192: =INDEX(P:P,$E192) -> 7005279.694
C193: 6 | D193: =INDEX(D:D,$E193) -> Company Case appliances Cap Exp | E193: 68 | H193: =INDEX(H:H,$E193) -> 0 | I193: =INDEX(I:I,$E193) -> 0 | J193: =INDEX(J:J,$E193) -> 0 | K193: =INDEX(K:K,$E193) -> 0 | L193: =INDEX(L:L,$E193) -> 0 | M193: =INDEX(M:M,$E193) -> 0 | N193: =INDEX(N:N,$E193) -> 1.548059739 | O193: =INDEX(O:O,$E193) -> 0.6908538462 | P193: =INDEX(P:P,$E193) -> 0.2810887435
C194: 7 | D194: =INDEX(D:D,$E194) -> appliances Cap Exp Applied | E194: 70 | H194: =INDEX(H:H,$E194) -> 0 | I194: =INDEX(I:I,$E194) -> 0 | J194: =INDEX(J:J,$E194) -> 0 | K194: =INDEX(K:K,$E194) -> 0 | L194: =INDEX(L:L,$E194) -> 0 | M194: =INDEX(M:M,$E194) -> 0 | N194: =INDEX(N:N,$E194) -> 2477360 | O194: =INDEX(O:O,$E194) -> 3592440 | P194: =INDEX(P:P,$E194) -> 2864960
C195: 8 | D195: =INDEX(D:D,$E195) -> Company Case Cash COGS Percent | E195: 94 | H195: =INDEX(H:H,$E195) -> 0.9183673469 | I195: =INDEX(I:I,$E195) -> 0.525862069 | J195: =INDEX(J:J,$E195) -> 0.4545472229 | K195: =INDEX(K:K,$E195) -> 0.7980385728 | L195: =INDEX(L:L,$E195) -> 0.3653795259 | M195: =INDEX(M:M,$E195) -> 0.306122449 | N195: =INDEX(N:N,$E195) -> 0.268115942 | O195: =INDEX(O:O,$E195) -> 0.2293577982 | P195: =INDEX(P:P,$E195) -> 0.2124183007
C196: 9 | D196: =INDEX(D:D,$E196) -> Cash COGS Applied Solar | E196: 96 | H196: =INDEX(H:H,$E196) -> 450000 | I196: =INDEX(I:I,$E196) -> 610000 | J196: =INDEX(J:J,$E196) -> 1063640.501 | K196: =INDEX(K:K,$E196) -> 2593625.362 | L196: =INDEX(L:L,$E196) -> 1271520.75 | M196: =INDEX(M:M,$E196) -> 1500000 | N196: =INDEX(N:N,$E196) -> 1850000 | O196: =INDEX(O:O,$E196) -> 2500000 | P196: =INDEX(P:P,$E196) -> 3250000
C197: 10 | D197: =INDEX(D:D,$E197) -> Other COGS appliances as Percent of Revenues | E197: 105 | H197: =INDEX(H:H,$E197) -> 0 | I197: =INDEX(I:I,$E197) -> 0 | J197: =INDEX(J:J,$E197) -> 0 | K197: =INDEX(K:K,$E197) -> 0 | L197: =INDEX(L:L,$E197) -> 0 | M197: =INDEX(M:M,$E197) -> 0 | N197: =INDEX(N:N,$E197) -> 0.4999062676 | O197: =INDEX(O:O,$E197) -> 0.5288461538 | P197: =INDEX(P:P,$E197) -> 0.5396194324
C198: 11 | D198: =INDEX(D:D,$E198) -> Company Case SG&A Percent | E198: 121 | H198: =INDEX(H:H,$E198) -> 0 | I198: =INDEX(I:I,$E198) -> 0.2068965517 | J198: =INDEX(J:J,$E198) -> 0.594017094 | K198: =INDEX(K:K,$E198) -> 0.4307692308 | L198: =INDEX(L:L,$E198) -> 0.316091954 | M198: =INDEX(M:M,$E198) -> 0.3265306122 | N198: =INDEX(N:N,$E198) -> 0.2941072668 | O198: =INDEX(O:O,$E198) -> 0.2453416149 | P198: =INDEX(P:P,$E198) -> 0.203982617
C199: 12 | D199: =INDEX(D:D,$E199) -> SG&A Projections | E199: 123 | H199: =INDEX(H:H,$E199) -> 0 | I199: =INDEX(I:I,$E199) -> 240000 | J199: =INDEX(J:J,$E199) -> 1390000 | K199: =INDEX(K:K,$E199) -> 1400000 | L199: =INDEX(L:L,$E199) -> 1100000 | M199: =INDEX(M:M,$E199) -> 1600000 | N199: =INDEX(N:N,$E199) -> 2500000 | O199: =INDEX(O:O,$E199) -> 3950000 | P199: =INDEX(P:P,$E199) -> 5200000
C200: 13 | D200: =INDEX(D:D,$E200) -> Company Case Overheads | E200: 136 | H200: =INDEX(H:H,$E200) -> 0.5 | I200: =INDEX(I:I,$E200) -> 0.5 | J200: =INDEX(J:J,$E200) -> 0.1923076923 | K200: =INDEX(K:K,$E200) -> 0.4153846154 | L200: =INDEX(L:L,$E200) -> 0.4885057471 | M200: =INDEX(M:M,$E200) -> 0.3459183673 | N200: =INDEX(N:N,$E200) -> 0.2494029622 | O200: =INDEX(O:O,$E200) -> 0.01552795031 | P200: =INDEX(P:P,$E200) -> 0.1098367938
C201: 14 | D201: =INDEX(D:D,$E201) -> Projected Overheands | E201: 138 | H201: =INDEX(H:H,$E201) -> 245000 | I201: =INDEX(I:I,$E201) -> 580000 | J201: =INDEX(J:J,$E201) -> 450000 | K201: =INDEX(K:K,$E201) -> 1350000 | L201: =INDEX(L:L,$E201) -> 1700000 | M201: =INDEX(M:M,$E201) -> 1695000 | N201: =INDEX(N:N,$E201) -> 2120000 | O201: =INDEX(O:O,$E201) -> 250000 | P201: =INDEX(P:P,$E201) -> 2800000
C202: 15 | D202: =INDEX(D:D,$E202) -> Company Inventory as % of Revenues | E202: 156 | H202: =INDEX(H:H,$E202) -> 0.6638122449 | I202: =INDEX(I:I,$E202) -> 1.5 | J202: =INDEX(J:J,$E202) -> 1.172662821 | K202: =INDEX(K:K,$E202) -> 0.3766205662 | L202: =INDEX(L:L,$E202) -> 1.050794839 | M202: =INDEX(M:M,$E202) -> 0.24184433 | N202: =INDEX(N:N,$E202) -> 0.4459965687 | O202: =INDEX(O:O,$E202) -> 0.3878374054 | P202: =INDEX(P:P,$E202) -> 0.08257307711
C203: 16 | D203: =INDEX(D:D,$E203) -> Total Inventories | E203: 158 | H203: =INDEX(H:H,$E203) -> 325268 | I203: =INDEX(I:I,$E203) -> 1740000 | J203: =INDEX(J:J,$E203) -> 2744031 | K203: =INDEX(K:K,$E203) -> 1224016.84 | L203: =INDEX(L:L,$E203) -> 3656766.04 | M203: =INDEX(M:M,$E203) -> 1185037.217 | N203: =INDEX(N:N,$E203) -> 3791104.633 | O203: =INDEX(O:O,$E203) -> 6244182.226 | P203: =INDEX(P:P,$E203) -> 2104983.294
C204: 17 | D204: =INDEX(D:D,$E204) -> CL as Percent of Exp Company | E204: 168 | H204: =INDEX(H:H,$E204) -> 0.0450936586 | I204: =INDEX(I:I,$E204) -> 0.02695779468 | J204: =INDEX(J:J,$E204) -> 0.0560638042 | K204: =INDEX(K:K,$E204) -> 0.5001444523 | L204: =INDEX(L:L,$E204) -> 0.9168604458 | M204: =INDEX(M:M,$E204) -> 0.5504550889 | N204: =INDEX(N:N,$E204) -> 0.3778338021 | O204: =INDEX(O:O,$E204) -> 0.307402819 | P204: =INDEX(P:P,$E204) -> 0.1798979088
C205: 18 | D205: =INDEX(D:D,$E205) -> Total Current Liabilities to Model | E205: 170 | H205: =INDEX(H:H,$E205) -> 31340.09273 | I205: =INDEX(I:I,$E205) -> 38549.64639 | J205: =INDEX(J:J,$E205) -> 162789.1325 | K205: =INDEX(K:K,$E205) -> 2672584.58 | L205: =INDEX(L:L,$E205) -> 3733016.33 | M205: =INDEX(M:M,$E205) -> 2639432.151 | N205: =INDEX(N:N,$E205) -> 2746851.742 | O205: =INDEX(O:O,$E205) -> 2904956.639 | P205: =INDEX(P:P,$E205) -> 3013289.973
... 7 more rows

Sheet Forecast
C1: Months
C2: Year | G2: 2015 | H2: 2016 | I2: 2017 | J2: 2018 | K2: 2019 | L2: 2020 | M2: 2021 | N2: 2022 | O2: 2023
C3: History | G3: TRUE | H3: TRUE | I3: TRUE | J3: TRUE | K3: TRUE | L3: FALSE | M3: FALSE | N3: FALSE | O3: FALSE
B5: HISTORIC BALANCE SHEET
C6: Fixed Assets:
C7: Fixtures and Fittings | G7: 65740 | H7: 61095 | I7: 119788.6047 | J7: 238363.86 | K7: 271181.94
C8: Accumulated Depreciation F&F | G8: 0 | H8: 0 | I8: 0 | J8: -155852.74 | K8: -136214.48
C9: HPA assets solar | G9: 0 | H9: 1521823 | I9: 5440117.686 | J9: 8785039.7 | K9: 8172272.75
C10: HPA assets accumulated depreciation solar | G10: 0 | H10: 0 | I10: 0 | J10: -807448.04 | K10: -1261794.34
C11: HPA assets appliances | G11: 0 | H11: 0 | I11: 0 | J11: 513328.97 | K11: 999413.72
C12: HPA assets accumulated depreciation appliances | G12: 0 | H12: 0 | I12: 0 | J12: -935783.33 | K12: -1152506.84
C13: Other Assets | G13: ='Company Case'!G13 -> 607 | H13: ='Company Case'!H13 -> 514 | I13: ='Company Case'!I13 -> 424418.8631 | J13: ='Company Case'!J13 -> 500000 | K13: ='Company Case'!K13 -> 450000
C14: Total Fixed Assets | G14: =SUM(G7:G13) -> 66347 | H14: =SUM(H7:H13) -> 1583432 | I14: =SUM(I7:I13) -> 5984325.154 | J14: =SUM(J7:J13) -> 8137648.42 | K14: =SUM(K7:K13) -> 7342352.75
C16: Current Assets:
C17: Cash at Bank | G17: ='Company Case'!G17 -> 40321 | H17: 246913 | I17: 808794 | J17: 1293875.8 | K17: 670780.36
C18: Inventory and Work in Progress solar | G18: ='Company Case'!G18 -> 325634 | H18: 3879248 | I18: 2744031 | J18: 1224016.84 | K18: 3656766.04
C19: Trade Receivables | G19: ='Company Case'!G19 -> 1142515 | H19: 431317 | I19: 372006 | J19: 500678.01 | K19: 431947.52
C20: Other Current Assets | G20: ='Company Case'!G20 -> 55438 | H20: 96026 | I20: 158884.697 | J20: 153267.52 | K20: 805893.58
C21: Total Current Assets | G21: =SUM(G17:G20) -> 1563908 | H21: =SUM(H17:H20) -> 4653504 | I21: =SUM(I17:I20) -> 4083715.697 | J21: =SUM(J17:J20) -> 3171838.17 | K21: =SUM(K17:K20) -> 5565387.5
C22: Total Assets | G22: =G21+G14 -> 1630255 | H22: =H21+H14 -> 6236936 | I22: =I21+I14 -> 10068040.85 | J22: =J21+J14 -> 11309486.59 | K22: =K21+K14 -> 12907740.25
C24: Total Current Liabilities | G24: 58756 | H24: 70899 | I24: 162789.1325 | J24: 2672584.58 | K24: 3733016.33
C25: Intercompany Creditor Balances | G25: 2244298 | H25: 7305778 | I25: 5359545 | J25: 7548455.66 | K25: 7006235.02
C26: Loans | G26: 0 | H26: 0 | I26: 4522177.637 | J26: 910967.71 | K26: 4268121.42
C27: Total Borrowings | G27: 0 | H27: 0 | I27: 0 | J27: 2441646.77 | K27: 7449789.75
C28: Shareholders' funds | G28: -676006 | H28: -1139741 | I28: -400645.4508 | J28: -7836389.06 | K28: -11777050.31
C29: AIMM Equity | G29: 0 | H29: 0 | I29: 0 | J29: 5072220.95 | K29: 1777628.05
C30: Total Liabilities and Capital | G30: =G24+G25+G27+G28+G26+G29 -> 1627048 | H30: =H24+H25+H27+H28+H26+H29 -> 6236936 | I30: =I24+I25+I27+I28+I26+I29 -> 9643866.318 | J30: =J24+J25+J27+J28+J26+J29 -> 10809486.61 | K30: =K24+K25+K27+K28+K26+K29 -> 12457740.26
B33: INCOME STATEMENT
C34: Revenue
C35: Revenue solar | G35: ='Assumptions and Working'!H14 -> 490000 | H35: ='Assumptions and Working'!I14 -> 1160000 | I35: ='Assumptions and Working'!J14 -> 2340000 | J35: ='Assumptions and Working'!K14 -> 3250000 | K35: ='Assumptions and Working'!L14 -> 3480000 | L35: ='Assumptions and Working'!M14 -> 4900000 | M35: ='Assumptions and Working'!N14 -> 6900000 | N35: ='Assumptions and Working'!O14 -> 10900000 | O35: ='Assumptions and Working'!P14 -> 15300000
C36: Revenue appliances | G36: ='Assumptions and Working'!H23 -> 0 | H36: ='Assumptions and Working'!I23 -> 0 | I36: ='Assumptions and Working'!J23 -> 0 | J36: ='Assumptions and Working'!K23 -> 0 | K36: ='Assumptions and Working'!L23 -> 0 | L36: ='Assumptions and Working'!M23 -> 0 | M36: ='Assumptions and Working'!N23 -> 1600300 | N36: ='Assumptions and Working'!O23 -> 5200000 | O36: ='Assumptions and Working'!P23 -> 10192368.31 | R36: 0
C37: Total revenue | G37: =SUM(G35:G36) -> 490000 | H37: =SUM(H35:H36) -> 1160000 | I37: 2340000 | J37: 3250000 | K37: 3480000 | L37: 4900000 | M37: 8500300 | N37: 16100000 | O37: 25492368.31 | Q37: TRUE | R37: =IF(Q37,R36+1,R36) -> 1
R38: =IF(Q38,R37+1,R37) -> 1
C39: Other COGS Home Systems | G39: ='Assumptions and Working'!H96 -> 450000 | H39: ='Assumptions and Working'!I96 -> 610000 | I39: ='Assumptions and Working'!J96 -> 1063640.501 | J39: ='Assumptions and Working'!K96 -> 2593625.362 | K39: ='Assumptions and Working'!L96 -> 1271520.75 | L39: ='Assumptions and Working'!M96 -> 1500000 | M39: ='Assumptions and Working'!N96 -> 1850000 | N39: ='Assumptions and Working'!O96 -> 2500000 | O39: ='Assumptions and Working'!P96 -> 3250000 | R39: 1
C40: Other COGS appliances | G40: ='Assumptions and Working'!H107 -> 0 | H40: ='Assumptions and Working'!I107 -> 0 | I40: ='Assumptions and Working'!J107 -> 0 | J40: ='Assumptions and Working'!K107 -> 0 | K40: ='Assumptions and Working'!L107 -> 0 | L40: ='Assumptions and Working'!M107 -> 0 | M40: ='Assumptions and Working'!N107 -> 800000 | N40: ='Assumptions and Working'!O107 -> 2750000 | O40: ='Assumptions and Working'!P107 -> 5500000 | R40: 1
C41: Total COGS | G41: =SUM(G39:G40) -> 450000 | H41: =SUM(H39:H40) -> 610000 | I41: 1063640.501 | J41: 2593625.362 | K41: 1271520.75 | L41: 1500000 | M41: 2650000 | N41: 5250000 | O41: 8750000 | R41: 1
C42: Gross profit | G42: =G37-G41 -> 40000 | H42: 550000 | I42: 1276359.499 | J42: 656374.6382 | K42: 2208479.25 | L42: 3400000 | M42: 5850300 | N42: 10850000 | O42: 16742368.31 | Q42: TRUE | R42: 2
R43: 2
C44: Total SG&A | G44: ='Assumptions and Working'!H123 -> 0 | H44: ='Assumptions and Working'!I123 -> 240000 | I44: ='Assumptions and Working'!J123 -> 1390000 | J44: ='Assumptions and Working'!K123 -> 1400000 | K44: ='Assumptions and Working'!L123 -> 1100000 | L44: ='Assumptions and Working'!M123 -> 1600000 | M44: ='Assumptions and Working'!N123 -> 2500000 | N44: ='Assumptions and Working'!O123 -> 3950000 | O44: ='Assumptions and Working'!P123 -> 5200000 | R44: 2
C45: Total Overheads | G45: ='Assumptions and Working'!H138 -> 245000 | H45: ='Assumptions and Working'!I138 -> 580000 | I45: ='Assumptions and Working'!J138 -> 450000 | J45: ='Assumptions and Working'!K138 -> 1350000 | K45: ='Assumptions and Working'!L138 -> 1700000 | L45: ='Assumptions and Working'!M138 -> 1695000 | M45: ='Assumptions and Working'!N138 -> 2120000 | N45: ='Assumptions and Working'!O138 -> 250000 | O45: ='Assumptions and Working'!P138 -> 2800000 | R45: 2
C46: Total Cash Expenses | G46: =G41+G44+G45 -> 695000 | H46: =H41+H44+H45 -> 1430000 | I46: 2903640.501 | J46: 5343625.362 | K46: 4071520.75 | L46: 4795000 | M46: 7270000 | N46: 9450000 | O46: 16750000 | R46: 2
C47: EBITDA | G47: =G37-G46 -> -205000 | H47: =H37-H46 -> -270000 | I47: -563640.5015 | J47: -2093625.362 | K47: -591520.75 | L47: 105000 | M47: 1230300 | N47: 6650000 | O47: 8742368.305 | Q47: TRUE | R47: 3
R48: 3
C49: Depreciation HPA Assets solar | G49: ='Assumptions and Working'!H51 -> 0 | H49: ='Assumptions and Working'!I51 -> 114878 | I49: ='Assumptions and Working'!J51 -> 619077.5664 | J49: ='Assumptions and Working'!K51 -> 905988.596 | K49: ='Assumptions and Working'!L51 -> 1092404.25 | L49: ='Assumptions and Working'!M51 -> 1668203.044 | M49: ='Assumptions and Working'!N51 -> 2205835.155 | N49: ='Assumptions and Working'!O51 -> 3525750.065 | O49: ='Assumptions and Working'!P51 -> 5039934.129 | R49: 3
C50: Depreciation HPA Assets appliances | G50: ='Assumptions and Working'!H82 -> 0 | H50: ='Assumptions and Working'!I82 -> 0 | I50: ='Assumptions and Working'!J82 -> 0 | J50: ='Assumptions and Working'!K82 -> 0 | K50: ='Assumptions and Working'!L82 -> 0 | L50: ='Assumptions and Working'!M82 -> 0 | M50: ='Assumptions and Working'!N82 -> 247683.134 | N50: ='Assumptions and Working'!O82 -> 726756.2507 | O50: ='Assumptions and Working'!P82 -> 1189963.842 | R50: 3
C51: Depreciation Fixtures and Fittings | G51: 16812 | H51: 48697 | I51: 22435.20544 | J51: 61854.84548 | K51: 46025.3 | L51: 67565.07937 | M51: 74385.71429 | N51: 77947.61905 | O51: 63277.77778 | R51: 3
C52: Total Depreciation | G52: =SUM(G49:G51) -> 16812 | H52: =SUM(H49:H51) -> 163575 | I52: 641512.7718 | J52: 967843.4414 | K52: 1138429.55 | L52: 1735768.123 | M52: 2527904.004 | N52: 4330453.935 | O52: 6293175.749 | R52: 3
R53: 3
C54: EBIT | G54: =G47-G52 -> -221812 | H54: -433575 | I54: -1205153.273 | J54: -3061468.803 | K54: -1729950.3 | L54: -1630768.123 | M54: -1297604.004 | N54: 2319546.065 | O54: 2449192.556 | R54: 3
C55: Interest Expense | G55: =G115 -> 0 | H55: =H115 -> 0 | I55: 452217.7637 | J55: 335261.448 | K55: 1171791.117 | L55: 1171791.117 | M55: 1392585.322 | N55: 2536828.874 | O55: 3753204.077 | R55: 3
C56: Profit before Tax | G56: =G54-G55 -> -221812 | H56: -433575 | I56: -1657371.037 | J56: -3396730.251 | K56: -2901741.417 | L56: -2802559.24 | M56: -2690189.325 | N56: -217282.8088 | O56: -1304011.521 | R56: 3
C57: Tax | L57: 0 | M57: 0 | N57: 0 | O57: 0 | R57: 3
C58: Net Income | G58: =G56-G57 -> -221812 | H58: =H56-H57 -> -433575 | I58: -1657371.037 | J58: -3396730.251 | K58: -2901741.417 | L58: -2802559.24 | M58: -2690189.325 | N58: -217282.8088 | O58: -1304011.521 | Q58: TRUE | R58: 4
R59: 4
B60: CASH FLOW STATEMENT - DIRECT | R60: 4
R61: 4
C62: Working Capital Changes | R62: 4
C63: Working Capital Changes | G63: ='Assumptions and Working'!H146 -> 1142515 | H63: ='Assumptions and Working'!I146 -> 431317 | I63: ='Assumptions and Working'!J146 -> 372006 | J63: ='Assumptions and Working'!K146 -> 500678.01 | K63: ='Assumptions and Working'!L146 -> 431947.52 | L63: ='Assumptions and Working'!M146 -> 415756.07 | M63: ='Assumptions and Working'!N146 -> 415756.07 | N63: ='Assumptions and Working'!O146 -> 415756.07 | O63: ='Assumptions and Working'!P146 -> 415756.07 | R63: 4
C64: Total Inventories | G64: ='Assumptions and Working'!H158 -> 325268 | H64: ='Assumptions and Working'!I158 -> 1740000 | I64: ='Assumptions and Working'!J158 -> 2744031 | J64: ='Assumptions and Working'!K158 -> 1224016.84 | K64: ='Assumptions and Working'!L158 -> 3656766.04 | L64: ='Assumptions and Working'!M158 -> 1185037.217 | M64: ='Assumptions and Working'!N158 -> 3791104.633 | N64: ='Assumptions and Working'!O158 -> 6244182.226 | O64: ='Assumptions and Working'!P158 -> 2104983.294 | R64: 4
C65: Other Current Assets | G65: ='Company Case'!G162 -> 55438 | H65: ='Company Case'!H162 -> 96026 | I65: ='Company Case'!I162 -> 158884.697 | J65: ='Company Case'!J162 -> 153267.52 | K65: ='Company Case'!K162 -> 805893.58 | L65: ='Company Case'!L162 -> 990292.66 | M65: ='Company Case'!M162 -> 990292.66 | N65: ='Company Case'!N162 -> 990292.66 | O65: ='Company Case'!O162 -> 990292.66 | R65: 4
C66: Total Current Liabilities | G66: ='Assumptions and Working'!H170 -> 31340.09273 | H66: ='Assumptions and Working'!I170 -> 38549.64639 | I66: ='Assumptions and Working'!J170 -> 162789.1325 | J66: ='Assumptions and Working'!K170 -> 2672584.58 | K66: ='Assumptions and Working'!L170 -> 3733016.33 | L66: ='Assumptions and Working'!M170 -> 2639432.151 | M66: ='Assumptions and Working'!N170 -> 2746851.742 | N66: ='Assumptions and Working'!O170 -> 2904956.639 | O66: ='Assumptions and Working'!P170 -> 3013289.973 | R66: 4
R67: 4
C68: Change in Receivables | H68: =H63-G63 -> -711198 | I68: =I63-H63 -> -59311 | J68: 128672.01 | K68: -68730.49 | L68: -16191.45 | M68: 0 | N68: 0 | O68: 0 | R68: 4
C69: Change in Inventories | H69: =H64-G64 -> 1414732 | I69: =I64-H64 -> 1004031 | J69: -1520014.16 | K69: 2432749.2 | L69: -2471728.823 | M69: 2606067.416 | N69: 2453077.593 | O69: -4139198.932 | R69: 4
C70: Change in Other Current Assets | H70: =H65-G65 -> 40588 | I70: =I65-H65 -> 62858.69704 | J70: -5617.177041 | K70: 652626.06 | L70: 184399.08 | M70: 0 | N70: 0 | O70: 0 | R70: 4
C71: Change in Liabilities | H71: =H66-G66 -> 7209.553662 | I71: 124239.4862 | J71: 2509795.447 | K71: 1060431.75 | L71: -1093584.179 | M71: 107419.5906 | N71: 158104.8976 | O71: 108333.3333 | R71: 4
R72: 4
C73: Operating Cash Flow | R73: 4
C74: EBITDA | G74: =Forecast!G47 -> -205000 | H74: =Forecast!H47 -> -270000 | I74: =Forecast!I47 -> -563640.5015 | J74: =Forecast!J47 -> -2093625.362 | K74: =Forecast!K47 -> -591520.75 | L74: =Forecast!L47 -> 105000 | M74: =Forecast!M47 -> 1230300 | N74: =Forecast!N47 -> 6650000 | O74: =Forecast!O47 -> 8742368.305 | R74: 4
C75: Less: Changes in Current Assets | G75: =G68+G69+G70 -> 0 | H75: =H68+H69+H70 -> 744122 | I75: 1007578.697 | J75: -1396959.327 | K75: 3016644.77 | L75: -2303521.193 | M75: 2606067.416 | N75: 2453077.593 | O75: -4139198.932 | R75: 4
C76: Add: Changes in Current Liabilities | G76: =Forecast!G71 -> 0 | H76: =Forecast!H71 -> 7209.553662 | I76: =Forecast!I71 -> 124239.4862 | J76: =Forecast!J71 -> 2509795.447 | K76: =Forecast!K71 -> 1060431.75 | L76: =Forecast!L71 -> -1093584.179 | M76: =Forecast!M71 -> 107419.5906 | N76: =Forecast!N71 -> 158104.8976 | O76: =Forecast!O71 -> 108333.3333 | R76: 4
C77: Less: Income Tax | R77: 4
C78: Operating Cash Flow | G78: =G74-G75+G76 -> -205000 | H78: -1006912.446 | I78: -1446979.712 | J78: 1813129.413 | K78: -2547733.77 | L78: 1314937.014 | M78: -1268347.825 | N78: 4355027.305 | O78: =O74-O75+O76 -> 12989900.57 | Q78: TRUE | R78: 5
R79: 5
C80: Capital Expenditures | R80: 5
C81: Solar Lease Capital Expenditures | G81: ='Assumptions and Working'!H38 -> 0 | H81: ='Assumptions and Working'!I38 -> 0 | I81: ='Assumptions and Working'!J38 -> 2925000 | J81: ='Assumptions and Working'!K38 -> 2634493 | K81: ='Assumptions and Working'!L38 -> 4350000 | L81: ='Assumptions and Working'!M38 -> 2477414.84 | M81: ='Assumptions and Working'!N38 -> 7515524.099 | N81: ='Assumptions and Working'!O38 -> 11681038.46 | O81: ='Assumptions and Working'!P38 -> 7005279.694 | R81: 5
C82: appliances Lease Capital Expenditures | G82: ='Assumptions and Working'!H70 -> 0 | H82: ='Assumptions and Working'!I70 -> 0 | I82: ='Assumptions and Working'!J70 -> 0 | J82: ='Assumptions and Working'!K70 -> 0 | K82: ='Assumptions and Working'!L70 -> 0 | L82: ='Assumptions and Working'!M70 -> 0 | M82: ='Assumptions and Working'!N70 -> 2477360 | N82: ='Assumptions and Working'!O70 -> 3592440 | O82: ='Assumptions and Working'!P70 -> 2864960 | R82: 5
C83: Fixed asset purchases | G83: 0 | H83: 0 | I83: 0 | J83: 0 | K83: 0 | L83: 119000 | M83: 60000 | N83: 60000 | O83: 60000 | R83: 5
C84: Total Capital Expenditures | G84: =SUM(G81:G83) -> 0 | H84: 0 | I84: 2925000 | J84: 2634493 | K84: 4350000 | L84: 2596414.84 | M84: 10052884.1 | N84: 15333478.46 | O84: 9930239.694 | Q84: TRUE | R84: 6
R85: 6
C86: Cash Flow After Capital Expenditure | G86: =G78-G84 -> -205000 | H86: -1006912.446 | I86: -4371979.712 | J86: -821363.5873 | K86: -6897733.77 | L86: -1281477.826 | M86: -11321231.92 | N86: -10978451.16 | O86: 3059660.876 | Q86: TRUE | R86: 7
C87: Less: Total Interest | G87: =G115 -> 0 | H87: =H115 -> 0 | I87: 452217.7637 | J87: 335261.448 | K87: 1171791.117 | L87: 1171791.117 | M87: 1392585.322 | N87: 2536828.874 | O87: 3753204.077 | R87: 7
C88: Net Cash Flow to Financing | G88: =G86-G87 -> -205000 | H88: -1006912.446 | I88: -4824197.476 | J88: -1156625.035 | K88: -8069524.887 | L88: -2453268.943 | M88: -12713817.25 | N88: -13515280.03 | O88: -693543.2004 | Q88: TRUE | R88: 8
R89: 8
B90: FINANCING | R90: 8
R91: 8
C92: Intercompany Creditor Balances Debt | G92: =IF(G3,G25,F92) -> 2244298 | H92: 7305778 | I92: 5359545 | J92: 7548455.66 | K92: 7006235.02 | L92: 7006235.02 | M92: 7006235.02 | N92: 7006235.02 | O92: 7006235.02 | R92: 8
C93: Interest Rate on Intercopany Balances | R93: 8
C94: Interest Expense on Intercompany Balances | R94: 8
R95: 8
C96: Loans and Borrowings | G96: =IF(G3,G26+G27,F96) -> 0 | H96: 0 | I96: 4522177.637 | J96: 3352614.48 | K96: 11717911.17 | L96: 11717911.17 | M96: 11717911.17 | N96: 11717911.17 | O96: 11717911.17 | R96: 8
C97: Interest Rate on Loans and Borrowings | G97: ='Assumptions and Working'!H184 -> 0.1 | H97: ='Assumptions and Working'!I184 -> 0.1 | I97: ='Assumptions and Working'!J184 -> 0.1 | J97: ='Assumptions and Working'!K184 -> 0.1 | K97: ='Assumptions and Working'!L184 -> 0.1 | L97: ='Assumptions and Working'!M184 -> 0.1 | M97: ='Assumptions and Working'!N184 -> 0.1 | N97: ='Assumptions and Working'!O184 -> 0.1 | O97: ='Assumptions and Working'!P184 -> 0.1 | R97: 8
C98: Interest Expense on Loans and Borrowings | G98: =G96*G97 -> 0 | H98: =H96*H97 -> 0 | I98: 452217.7637 | J98: 335261.448 | K98: 1171791.117 | L98: 1171791.117 | M98: 1171791.117 | N98: 1171791.117 | O98: 1171791.117 | R98: 8
R99: 8
C100: Total Intercompany and Other Loans | G100: =G96+G92 -> 2244298 | H100: =H96+H92 -> 7305778 | I100: 9881722.637 | J100: 10901070.14 | K100: 18724146.19 | L100: 18724146.19 | M100: 18724146.19 | N100: 18724146.19 | O100: 18724146.19 | R100: 8
C101: Changes in Intercompany and Other Loans | H101: =H100-G100 -> 5061480 | I101: =I100-H100 -> 2575944.637 | J101: 1019347.503 | K101: 7823076.05 | L101: 0 | M101: 0 | N101: 0 | O101: 0 | R101: 8
R102: =IF(Q102,R101+1,R101) -> 8
C103: Net Cash Flow to New Loans | G103: =G88+G101 -> -205000 | H103: 4054567.554 | I103: -2248252.839 | J103: -137277.5319 | K103: -246448.837 | L103: -2453268.943 | M103: -12713817.25 | N103: -13515280.03 | O103: -693543.2004 | R103: 8
R104: 8
C105: New Loans from Negative Cash Flow | G105: =IF(NOT(G3),MAX(-G103,0)) -> FALSE | H105: FALSE | I105: FALSE | J105: FALSE | K105: FALSE | L105: 2453268.943 | M105: 12713817.25 | N105: 13515280.03 | O105: 693543.2004 | R105: 8
C106: Repayment of Loans from Positivie Cash Flow | G106: =IF(NOT(G3),MAX(G103,0)) -> FALSE | H106: FALSE | I106: FALSE | J106: FALSE | K106: FALSE | L106: 0 | M106: 0 | N106: 0 | O106: 0 | R106: 8
R107: 8
C108: Loan Balance | R108: 8
C109: Opening Balance | G109: =Forecast!F112 -> 0 | H109: =Forecast!G112 -> 0 | I109: =Forecast!H112 -> 0 | J109: =Forecast!I112 -> 0 | K109: =Forecast!J112 -> 0 | L109: =Forecast!K112 -> 0 | M109: =Forecast!L112 -> 2453268.943 | N109: =Forecast!M112 -> 15167086.19 | O109: =Forecast!N112 -> 28682366.22 | R109: 8
C110: New Loans Required | G110: =Forecast!G105 -> FALSE | H110: =Forecast!H105 -> FALSE | I110: =Forecast!I105 -> FALSE | J110: =Forecast!J105 -> FALSE | K110: =Forecast!K105 -> FALSE | L110: =Forecast!L105 -> 2453268.943 | M110: =Forecast!M105 -> 12713817.25 | N110: =Forecast!N105 -> 13515280.03 | O110: =Forecast!O105 -> 693543.2004 | Q110: TRUE | R110: 9
C111: Repayment of Loans | G111: =Forecast!G106 -> FALSE | H111: =Forecast!H106 -> FALSE | I111: =Forecast!I106 -> FALSE | J111: =Forecast!J106 -> FALSE | K111: =Forecast!K106 -> FALSE | L111: =Forecast!L106 -> 0 | M111: =Forecast!M106 -> 0 | N111: =Forecast!N106 -> 0 | O111: =Forecast!O106 -> 0 | Q111: TRUE | R111: 10
C112: Closing Balance | G112: =G109+G110-G111 -> 0 | H112: =H109+H110-H111 -> 0 | I112: 0 | J112: 0 | K112: 0 | L112: 2453268.943 | M112: 15167086.19 | N112: 28682366.22 | O112: 29375909.42 | R112: 10
R113: 10
C114: Interest on New Loans | D114: 0.09 | G114: =G109*$D$114 -> 0 | H114: =H109*$D$114 -> 0 | I114: =I109*$D$114 -> 0 | J114: 0 | K114: 0 | L114: 0 | M114: 220794.2049 | N114: 1365037.757 | O114: 2581412.96 | R114: 10
C115: Total Interest Expense | G115: =G114+G98 -> 0 | H115: 0 | I115: 452217.7637 | J115: 335261.448 | K115: 1171791.117 | L115: 1171791.117 | M115: 1392585.322 | N115: 2536828.874 | O115: 3753204.077 | R115: 10
R116: 10
R117: 10
R118: 10
R119: 10
R120: 10
B121: Balance Sheet | R121: 10
R122: 10
C123: Equity Balance | R123: 10
C124: Opening Equity Balance | G124: =F128 -> 0 | H124: =G128 -> -676006 | I124: -1139741 | J124: -400645.4508 | K124: -2764168.11 | L124: -9999422.26 | M124: -12801981.5 | N124: -15492170.83 | O124: -15709453.63 | R124: 10
C125: Add: Net Income | G125: =G58 -> -221812 | H125: =H58 -> -433575 | I125: -1657371.037 | J125: -3396730.251 | K125: -2901741.417 | L125: -2802559.24 | M125: -2690189.325 | N125: -217282.8088 | O125: -1304011.521 | R125: 10
C126: Add: New Equity Issued | R126: 10
C127: Less: Dividends | R127: 10
C128: Closing Balance | G128: =IF(G3,G28+G29,G124+G125+G126-G127) -> -676006 | H128: =IF(H3,H28+H29,H124+H125+H126-H127) -> -1139741 | I128: -400645.4508 | J128: -2764168.11 | K128: -9999422.26 | L128: -12801981.5 | M128: -15492170.83 | N128: -15709453.63 | O128: -17013465.15 | R128: 10
R129: 10
R130: 10
C131: Fixed Assets: | R131: 10
C132: Fixtures and Fittings | G132: =IF(G3,G7,F132+G83) -> 65740 | H132: 61095 | I132: 119788.6047 | J132: 238363.86 | K132: 271181.94 | L132: 390181.94 | M132: 450181.94 | N132: 510181.94 | O132: 570181.94 | R132: 10
C133: Accumulated Depreciation F&F | G133: =IF(G3,G8,F133-G51) -> 0 | H133: 0 | I133: 0 | J133: -155852.74 | K133: -136214.48 | L133: -203779.5594 | M133: -278165.2737 | N133: -356112.8927 | O133: -419390.6705 | R133: 10
C134: HPA assets solar | G134: ='Assumptions and Working'!H48 -> 1145895.52 | H134: ='Assumptions and Working'!I48 -> 1717222.08 | I134: ='Assumptions and Working'!J48 -> 5958882.72 | J134: ='Assumptions and Working'!K48 -> 9839244.464 | K134: ='Assumptions and Working'!L48 -> 9152945.48 | L134: ='Assumptions and Working'!M48 -> 11630360.32 | M134: ='Assumptions and Working'!N48 -> 19145884.42 | N134: ='Assumptions and Working'!O48 -> 30826922.88 | O134: ='Assumptions and Working'!P48 -> 37832202.58 | R134: 10
C135: HPA assets accumulated depreciation solar | G135: =-'Assumptions and Working'!H54 -> -169428.8376 | H135: =-'Assumptions and Working'!I54 -> -253903.5504 | I135: =-'Assumptions and Working'!J54 -> -881063.3736 | J135: =-'Assumptions and Working'!K54 -> -1454802.574 | K135: =-'Assumptions and Working'!L54 -> -1353328.367 | L135: =-'Assumptions and Working'!M54 -> -3021531.411 | M135: =-'Assumptions and Working'!N54 -> -5227366.566 | N135: =-'Assumptions and Working'!O54 -> -8753116.631 | O135: =-'Assumptions and Working'!P54 -> -13793050.76 | R135: 10
C136: HPA assets appliances | G136: ='Assumptions and Working'!H79 -> 0 | H136: ='Assumptions and Working'!I79 -> 0 | I136: ='Assumptions and Working'!J79 -> 0 | J136: ='Assumptions and Working'!K79 -> 0 | K136: ='Assumptions and Working'!L79 -> 0 | L136: ='Assumptions and Working'!M79 -> 0 | M136: ='Assumptions and Working'!N79 -> 2477360 | N136: ='Assumptions and Working'!O79 -> 6069800 | O136: ='Assumptions and Working'!P79 -> 8934760 | R136: 10
C137: HPA assets accumulated depreciation appliances | G137: =-'Assumptions and Working'!H84 -> 0 | H137: =-'Assumptions and Working'!I84 -> 0 | I137: =-'Assumptions and Working'!J84 -> 0 | J137: =-'Assumptions and Working'!K84 -> 0 | K137: =-'Assumptions and Working'!L84 -> 0 | L137: =-'Assumptions and Working'!M84 -> 0 | M137: =-'Assumptions and Working'!N84 -> -247683.134 | N137: =-'Assumptions and Working'!O84 -> -974439.3847 | O137: =-'Assumptions and Working'!P84 -> -2164403.226 | R137: 10
C138: Other Assets | G138: =IF(G3,G13,F138) -> 607 | H138: =IF(H3,H13,G138) -> 514 | I138: 424418.8631 | J138: 500000 | K138: 450000 | L138: 450000 | M138: 450000 | N138: 450000 | O138: 450000 | R138: 10
C139: Total Fixed Assets | G139: =SUM(G132:G138) -> 1042813.682 | H139: =SUM(H132:H138) -> 1524927.53 | I139: 5622026.814 | J139: 8966953.01 | K139: 8384584.573 | L139: 9245231.29 | M139: 16770211.38 | N139: 27773235.91 | O139: 31410299.86 | R139: 10
C140: Historic | G140: =Forecast!G14 -> 66347 | H140: =Forecast!H14 -> 1583432 | I140: =Forecast!I14 -> 5984325.154 | J140: =Forecast!J14 -> 8137648.42 | K140: =Forecast!K14 -> 7342352.75 | L140: =Forecast!L14 -> 0 | M140: =Forecast!M14 -> 0 | N140: =Forecast!N14 -> 0 | O140: =Forecast!O14 -> 0 | R140: 10
C141: Historic Check | G141: =ROUND(G139-G140,0)=0 -> FALSE | H141: =ROUND(H139-H140,0)=0 -> FALSE | I141: FALSE | J141: FALSE | K141: FALSE | L141: FALSE | M141: FALSE | N141: FALSE | O141: FALSE | R141: 10
R142: 10
C143: Current Assets: | R143: 10
C144: Cash at Bank | G144: =IF(G3,G17,F144) -> 40321 | H144: 246913 | I144: 808794 | J144: 1293875.8 | K144: 670780.36 | L144: 670780.36 | M144: 670780.36 | N144: 670780.36 | O144: 670780.36 | R144: 10
C145: Trade Receivables | G145: =Forecast!G63 -> 1142515 | H145: =Forecast!H63 -> 431317 | I145: =Forecast!I63 -> 372006 | J145: =Forecast!J63 -> 500678.01 | K145: =Forecast!K63 -> 431947.52 | L145: =Forecast!L63 -> 415756.07 | M145: =Forecast!M63 -> 415756.07 | N145: =Forecast!N63 -> 415756.07 | O145: =Forecast!O63 -> 415756.07 | R145: 10
C146: Inventories | G146: =Forecast!G64 -> 325268 | H146: =Forecast!H64 -> 1740000 | I146: =Forecast!I64 -> 2744031 | J146: =Forecast!J64 -> 1224016.84 | K146: =Forecast!K64 -> 3656766.04 | L146: =Forecast!L64 -> 1185037.217 | M146: =Forecast!M64 -> 3791104.633 | N146: =Forecast!N64 -> 6244182.226 | O146: =Forecast!O64 -> 2104983.294 | R146: 10
C147: Other Current Assets | G147: =G65 -> 55438 | H147: 96026 | I147: 158884.697 | J147: 153267.52 | K147: 805893.58 | L147: 990292.66 | M147: 990292.66 | N147: 990292.66 | O147: 990292.66 | R147: 10
C148: Total Current Assets | G148: =SUM(G144:G147) -> 1563542 | H148: =SUM(H144:H147) -> 2514256 | I148: 4083715.697 | J148: 3171838.17 | K148: 5565387.5 | L148: 3261866.307 | M148: 5867933.723 | N148: 8321011.316 | O148: 4181812.384 | R148: 10
C149: Total Assets | G149: =G148+G139 -> 2606355.682 | H149: 4039183.53 | I149: 9705742.511 | J149: 12138791.18 | K149: 13949972.07 | L149: 12507097.6 | M149: 22638145.11 | N149: 36094247.23 | O149: 35592112.24 | R149: 10
C150: Historic | G150: =G22 -> 1630255 | H150: 6236936 | I150: 10068040.85 | J150: 11309486.59 | K150: 12907740.25 | L150: 0 | M150: 0 | N150: 0 | O150: 0 | R150: 10
C151: Historic Check | G151: =ROUND(G149-G150,0)=0 -> FALSE | H151: =ROUND(H149-H150,0)=0 -> FALSE | I151: FALSE | J151: FALSE | K151: FALSE | L151: FALSE | M151: FALSE | N151: FALSE | O151: FALSE | R151: 10
R152: 10
C153: Total Current Liabilities | G153: =G66 -> 31340.09273 | H153: 38549.64639 | I153: 162789.1325 | J153: 2672584.58 | K153: 3733016.33 | L153: 2639432.151 | M153: 2746851.742 | N153: 2904956.639 | O153: 3013289.973 | R153: 10
C154: Intercompany Creditor Balances | G154: =G92 -> 2244298 | H154: 7305778 | I154: 5359545 | J154: 7548455.66 | K154: 7006235.02 | L154: 7006235.02 | M154: 7006235.02 | N154: 7006235.02 | O154: 7006235.02 | R154: 10
C155: Loans and Borrowings | G155: =G96 -> 0 | H155: 0 | I155: 4522177.637 | J155: 3352614.48 | K155: 11717911.17 | L155: 11717911.17 | M155: 11717911.17 | N155: 11717911.17 | O155: 11717911.17 | R155: 10
C156: New Loans | G156: =G112 -> 0 | H156: =H112 -> 0 | I156: 0 | J156: 0 | K156: 0 | L156: 2453268.943 | M156: 15167086.19 | N156: 28682366.22 | O156: 29375909.42 | Q156: TRUE | R156: 11
C157: Equity | G157: =G128 -> -676006 | H157: =H128 -> -1139741 | I157: -400645.4508 | J157: -2764168.11 | K157: -9999422.26 | L157: -12801981.5 | M157: -15492170.83 | N157: -15709453.63 | O157: -17013465.15 | R157: 11
C158: Total Liabilities and Capital | G158: =SUM(G153:G157) -> 1599632.093 | H158: =SUM(H153:H157) -> 6204586.646 | I158: 9643866.318 | J158: 10809486.61 | K158: 12457740.26 | L158: 11014865.78 | M158: 21145913.3 | N158: 34602015.42 | O158: 34099880.43 | R158: 11
C159: Historic Liability Check | G159: =G30 -> 1627048 | H159: =H30 -> 6236936 | I159: 9643866.318 | J159: 10809486.61 | K159: 12457740.26 | L159: 0 | M159: 0 | N159: 0 | O159: 0 | R159: 11
C160: Historic Check | G160: =ROUND(G158-G159,0)=0 -> FALSE | H160: =ROUND(H158-H159,0)=0 -> FALSE | I160: TRUE | J160: TRUE | K160: TRUE | L160: FALSE | M160: FALSE | N160: FALSE | O160: FALSE | R160: 11
R161: 11
C162: Assets- Liabilities and Capital | G162: =ROUND(G149-G158,0) -> 1006724 | H162: =ROUND(H149-H158,0) -> -2165403 | I162: 61876 | J162: 1329305 | K162: 1492232 | L162: 1492232 | M162: 1492232 | N162: 1492232 | O162: 1492232 | R162: 11
C163: Test | G163: =G162=0 -> FALSE | H163: =H162=0 -> FALSE | I163: FALSE | J163: FALSE | K163: FALSE | L163: FALSE | M163: FALSE | N163: FALSE | O163: FALSE | R163: 11
R164: 11
B165: Financial Ratios for Re-Financing | R165: 11
R166: =IF(Q166,R165+1,R165) -> 11
C167: Debt to Captial | G167: =SUM(G154:G156)/SUM(G154:G157) -> 1.431046004 | H167: =SUM(H154:H156)/SUM(H154:H157) -> 1.184841739 | I167: 1.042257377 | J167: 1.33970768 | K167: 2.146101853 | L167: 2.528515664 | M167: 1.84200875 | N167: 1.495612345 | O167: 1.547292736 | Q167: TRUE | R167: 12
C168: Debt to Equity | G168: =SUM(G154:G156)/SUM(G157) -> -3.319937989 | H168: =SUM(H154:H156)/SUM(H157) -> -6.410033508 | I168: -24.66450728 | J168: -3.943707367 | K168: -1.872522802 | L168: -1.654229475 | M168: -2.187636114 | N168: -3.017705995 | O168: -2.827175721 | Q168: TRUE | R168: 13
R169: 13
C170: EBITDA Margin | G170: =MAX(G47/G37,-30%) -> -0.3 | H170: =MAX(H47/H37,-30%) -> -0.2327586207 | I170: -0.2408720092 | J170: -0.3 | K170: -0.169977227 | L170: 0.02142857143 | M170: 0.1447360681 | N170: 0.4130434783 | O170: 0.3429406088 | Q170: TRUE | R170: 14
C171: EBIT to Interest | G171: =IFERROR(G54/G55,0) -> 0 | H171: 0 | I171: -2.664984373 | J171: -9.131586174 | K171: -1.476329932 | L171: -1.391688416 | M171: -0.9317949739 | N171: 0.9143486536 | O171: 0.652560454 | Q171: TRUE | R171: 15
C172: EBITDA to Interest | G172: =IFERROR(G74/G87,0) -> 0 | H172: 0 | I172: -1.246391776 | J172: -6.244754278 | K172: -0.504800507 | L172: 0.08960641404 | M172: 0.8834647189 | N172: 2.621382967 | O172: 2.329308006 | Q172: TRUE | R172: 16
R173: 16
C174: Debt to EBIDTA | G174: =MAX(0,MIN(SUM(G155:G156)/G47,15)) -> 0 | H174: =MAX(0,MIN(SUM(H155:H156)/H47,15)) -> 0 | I174: 0 | J174: 0 | K174: 0 | L174: 15 | M174: 15 | N174: 6.075229683 | O174: 4.700536417 | Q174: TRUE | R174: 17
C175: EBIDTA to interest | G175: =IFERROR(G74/G87,0) -> 0 | H175: 0 | I175: -1.246391776 | J175: -6.244754278 | K175: -0.504800507 | L175: 0.08960641404 | M175: 0.8834647189 | N175: 2.621382967 | O175: 2.329308006 | Q175: TRUE | R175: 18
C176: FFO(funds from operations) to Debt | G176: =IFERROR((G74-G87)/#REF!,0) -> 0 | H176: =IFERROR((H74-H87)/#REF!,0) -> 0 | I176: =IFERROR((I74-I87)/#REF!,0) -> 0 | J176: =IFERROR((J74-J87)/#REF!,0) -> 0 | K176: =IFERROR((K74-K87)/#REF!,0) -> 0 | L176: =IFERROR((L74-L87)/#REF!,0) -> 0 | M176: =IFERROR((M74-M87)/#REF!,0) -> 0 | N176: =IFERROR((N74-N87)/#REF!,0) -> 0 | O176: =IFERROR((O74-O87)/#REF!,0) -> 0 | Q176: TRUE | R176: 19
R177: 19
C178: Return on Investment | G178: =G54/G149 -> -0.08510427088 | H178: =H54/H149 -> -0.1073422381 | I178: -0.124169096 | J178: -0.2522054097 | K178: -0.1240110225 | L178: -0.1303874149 | M178: -0.05731936064 | N178: 0.06426359443 | O178: 0.06881279031 | Q178: TRUE | R178: 20
R179: 20
C182: =INDEX(C:C,E182) -> Total revenue | D182: 1 | E182: =MATCH(D182,R:R,0) -> 37 | G182: =INDEX(G:G,$E182) -> 490000 | H182: =INDEX(H:H,$E182) -> 1160000 | I182: =INDEX(I:I,$E182) -> 2340000 | J182: =INDEX(J:J,$E182) -> 3250000 | K182: =INDEX(K:K,$E182) -> 3480000 | L182: =INDEX(L:L,$E182) -> 4900000 | M182: =INDEX(M:M,$E182) -> 8500300 | N182: =INDEX(N:N,$E182) -> 16100000 | O182: =INDEX(O:O,$E182) -> 25492368.31
C183: =INDEX(C:C,E183) -> Gross profit | D183: 2 | E183: 42 | G183: =INDEX(G:G,$E183) -> 40000 | H183: =INDEX(H:H,$E183) -> 550000 | I183: =INDEX(I:I,$E183) -> 1276359.499 | J183: =INDEX(J:J,$E183) -> 656374.6382 | K183: =INDEX(K:K,$E183) -> 2208479.25 | L183: =INDEX(L:L,$E183) -> 3400000 | M183: =INDEX(M:M,$E183) -> 5850300 | N183: =INDEX(N:N,$E183) -> 10850000 | O183: =INDEX(O:O,$E183) -> 16742368.31
C184: =INDEX(C:C,E184) -> EBITDA | D184: 3 | E184: 47 | G184: =INDEX(G:G,$E184) -> -205000 | H184: =INDEX(H:H,$E184) -> -270000 | I184: =INDEX(I:I,$E184) -> -563640.5015 | J184: =INDEX(J:J,$E184) -> -2093625.362 | K184: =INDEX(K:K,$E184) -> -591520.75 | L184: =INDEX(L:L,$E184) -> 105000 | M184: =INDEX(M:M,$E184) -> 1230300 | N184: =INDEX(N:N,$E184) -> 6650000 | O184: =INDEX(O:O,$E184) -> 8742368.305
C185: =INDEX(C:C,E185) -> Net Income | D185: 4 | E185: 58 | G185: =INDEX(G:G,$E185) -> -221812 | H185: =INDEX(H:H,$E185) -> -433575 | I185: =INDEX(I:I,$E185) -> -1657371.037 | J185: =INDEX(J:J,$E185) -> -3396730.251 | K185: =INDEX(K:K,$E185) -> -2901741.417 | L185: =INDEX(L:L,$E185) -> -2802559.24 | M185: =INDEX(M:M,$E185) -> -2690189.325 | N185: =INDEX(N:N,$E185) -> -217282.8088 | O185: =INDEX(O:O,$E185) -> -1304011.521
C186: =INDEX(C:C,E186) -> Operating Cash Flow | D186: 5 | E186: 78 | G186: =INDEX(G:G,$E186) -> -205000 | H186: =INDEX(H:H,$E186) -> -1006912.446 | I186: =INDEX(I:I,$E186) -> -1446979.712 | J186: =INDEX(J:J,$E186) -> 1813129.413 | K186: =INDEX(K:K,$E186) -> -2547733.77 | L186: =INDEX(L:L,$E186) -> 1314937.014 | M186: =INDEX(M:M,$E186) -> -1268347.825 | N186: =INDEX(N:N,$E186) -> 4355027.305 | O186: =INDEX(O:O,$E186) -> 12989900.57
C187: =INDEX(C:C,E187) -> Total Capital Expenditures | D187: 6 | E187: 84 | G187: =INDEX(G:G,$E187) -> 0 | H187: =INDEX(H:H,$E187) -> 0 | I187: =INDEX(I:I,$E187) -> 2925000 | J187: =INDEX(J:J,$E187) -> 2634493 | K187: =INDEX(K:K,$E187) -> 4350000 | L187: =INDEX(L:L,$E187) -> 2596414.84 | M187: =INDEX(M:M,$E187) -> 10052884.1 | N187: =INDEX(N:N,$E187) -> 15333478.46 | O187: =INDEX(O:O,$E187) -> 9930239.694
C188: =INDEX(C:C,E188) -> Cash Flow After Capital Expenditure | D188: 7 | E188: 86 | G188: =INDEX(G:G,$E188) -> -205000 | H188: =INDEX(H:H,$E188) -> -1006912.446 | I188: =INDEX(I:I,$E188) -> -4371979.712 | J188: =INDEX(J:J,$E188) -> -821363.5873 | K188: =INDEX(K:K,$E188) -> -6897733.77 | L188: =INDEX(L:L,$E188) -> -1281477.826 | M188: =INDEX(M:M,$E188) -> -11321231.92 | N188: =INDEX(N:N,$E188) -> -10978451.16 | O188: =INDEX(O:O,$E188) -> 3059660.876
C189: =INDEX(C:C,E189) -> Net Cash Flow to Financing | D189: 8 | E189: 88 | G189: =INDEX(G:G,$E189) -> -205000 | H189: =INDEX(H:H,$E189) -> -1006912.446 | I189: =INDEX(I:I,$E189) -> -4824197.476 | J189: =INDEX(J:J,$E189) -> -1156625.035 | K189: =INDEX(K:K,$E189) -> -8069524.887 | L189: =INDEX(L:L,$E189) -> -2453268.943 | M189: =INDEX(M:M,$E189) -> -12713817.25 | N189: =INDEX(N:N,$E189) -> -13515280.03 | O189: =INDEX(O:O,$E189) -> -693543.2004
C190: =INDEX(C:C,E190) -> New Loans Required | D190: 9 | E190: 110 | G190: =INDEX(G:G,$E190) -> FALSE | H190: =INDEX(H:H,$E190) -> FALSE | I190: =INDEX(I:I,$E190) -> FALSE | J190: =INDEX(J:J,$E190) -> FALSE | K190: =INDEX(K:K,$E190) -> FALSE | L190: =INDEX(L:L,$E190) -> 2453268.943 | M190: =INDEX(M:M,$E190) -> 12713817.25 | N190: =INDEX(N:N,$E190) -> 13515280.03 | O190: =INDEX(O:O,$E190) -> 693543.2004
C191: =INDEX(C:C,E191) -> Repayment of Loans | D191: 10 | E191: 111 | G191: =INDEX(G:G,$E191) -> FALSE | H191: =INDEX(H:H,$E191) -> FALSE | I191: =INDEX(I:I,$E191) -> FALSE | J191: =INDEX(J:J,$E191) -> FALSE | K191: =INDEX(K:K,$E191) -> FALSE | L191: =INDEX(L:L,$E191) -> 0 | M191: =INDEX(M:M,$E191) -> 0 | N191: =INDEX(N:N,$E191) -> 0 | O191: =INDEX(O:O,$E191) -> 0
C192: =INDEX(C:C,E192) -> New Loans | D192: 11 | E192: 156 | G192: =INDEX(G:G,$E192) -> 0 | H192: =INDEX(H:H,$E192) -> 0 | I192: =INDEX(I:I,$E192) -> 0 | J192: =INDEX(J:J,$E192) -> 0 | K192: =INDEX(K:K,$E192) -> 0 | L192: =INDEX(L:L,$E192) -> 2453268.943 | M192: =INDEX(M:M,$E192) -> 15167086.19 | N192: =INDEX(N:N,$E192) -> 28682366.22 | O192: =INDEX(O:O,$E192) -> 29375909.42
C193: =INDEX(C:C,E193) -> Debt to Captial | D193: 12 | E193: 167 | G193: =INDEX(G:G,$E193) -> 1.431046004 | H193: =INDEX(H:H,$E193) -> 1.184841739 | I193: =INDEX(I:I,$E193) -> 1.042257377 | J193: =INDEX(J:J,$E193) -> 1.33970768 | K193: =INDEX(K:K,$E193) -> 2.146101853 | L193: =INDEX(L:L,$E193) -> 2.528515664 | M193: =INDEX(M:M,$E193) -> 1.84200875 | N193: =INDEX(N:N,$E193) -> 1.495612345 | O193: =INDEX(O:O,$E193) -> 1.547292736
C194: =INDEX(C:C,E194) -> Debt to Equity | D194: 13 | E194: 168 | G194: =INDEX(G:G,$E194) -> -3.319937989 | H194: =INDEX(H:H,$E194) -> -6.410033508 | I194: =INDEX(I:I,$E194) -> -24.66450728 | J194: =INDEX(J:J,$E194) -> -3.943707367 | K194: =INDEX(K:K,$E194) -> -1.872522802 | L194: =INDEX(L:L,$E194) -> -1.654229475 | M194: =INDEX(M:M,$E194) -> -2.187636114 | N194: =INDEX(N:N,$E194) -> -3.017705995 | O194: =INDEX(O:O,$E194) -> -2.827175721
C195: =INDEX(C:C,E195) -> EBITDA Margin | D195: 14 | E195: 170 | G195: =INDEX(G:G,$E195) -> -0.3 | H195: =INDEX(H:H,$E195) -> -0.2327586207 | I195: =INDEX(I:I,$E195) -> -0.2408720092 | J195: =INDEX(J:J,$E195) -> -0.3 | K195: =INDEX(K:K,$E195) -> -0.169977227 | L195: =INDEX(L:L,$E195) -> 0.02142857143 | M195: =INDEX(M:M,$E195) -> 0.1447360681 | N195: =INDEX(N:N,$E195) -> 0.4130434783 | O195: =INDEX(O:O,$E195) -> 0.3429406088
C196: =INDEX(C:C,E196) -> EBIT to Interest | D196: 15 | E196: 171 | G196: =INDEX(G:G,$E196) -> 0 | H196: =INDEX(H:H,$E196) -> 0 | I196: =INDEX(I:I,$E196) -> -2.664984373 | J196: =INDEX(J:J,$E196) -> -9.131586174 | K196: =INDEX(K:K,$E196) -> -1.476329932 | L196: =INDEX(L:L,$E196) -> -1.391688416 | M196: =INDEX(M:M,$E196) -> -0.9317949739 | N196: =INDEX(N:N,$E196) -> 0.9143486536 | O196: =INDEX(O:O,$E196) -> 0.652560454
C197: =INDEX(C:C,E197) -> EBITDA to Interest | D197: 16 | E197: 172 | G197: =INDEX(G:G,$E197) -> 0 | H197: =INDEX(H:H,$E197) -> 0 | I197: =INDEX(I:I,$E197) -> -1.246391776 | J197: =INDEX(J:J,$E197) -> -6.244754278 | K197: =INDEX(K:K,$E197) -> -0.504800507 | L197: =INDEX(L:L,$E197) -> 0.08960641404 | M197: =INDEX(M:M,$E197) -> 0.8834647189 | N197: =INDEX(N:N,$E197) -> 2.621382967 | O197: =INDEX(O:O,$E197) -> 2.329308006
C198: =INDEX(C:C,E198) -> Debt to EBIDTA | D198: 17 | E198: 174 | G198: =INDEX(G:G,$E198) -> 0 | H198: =INDEX(H:H,$E198) -> 0 | I198: =INDEX(I:I,$E198) -> 0 | J198: =INDEX(J:J,$E198) -> 0 | K198: =INDEX(K:K,$E198) -> 0 | L198: =INDEX(L:L,$E198) -> 15 | M198: =INDEX(M:M,$E198) -> 15 | N198: =INDEX(N:N,$E198) -> 6.075229683 | O198: =INDEX(O:O,$E198) -> 4.700536417
C199: =INDEX(C:C,E199) -> EBIDTA to interest | D199: 18 | E199: 175 | G199: =INDEX(G:G,$E199) -> 0 | H199: =INDEX(H:H,$E199) -> 0 | I199: =INDEX(I:I,$E199) -> -1.246391776 | J199: =INDEX(J:J,$E199) -> -6.244754278 | K199: =INDEX(K:K,$E199) -> -0.504800507 | L199: =INDEX(L:L,$E199) -> 0.08960641404 | M199: =INDEX(M:M,$E199) -> 0.8834647189 | N199: =INDEX(N:N,$E199) -> 2.621382967 | O199: =INDEX(O:O,$E199) -> 2.329308006
C200: =INDEX(C:C,E200) -> FFO(funds from operations) to Debt | D200: 19 | E200: 176 | G200: =INDEX(G:G,$E200) -> 0 | H200: =INDEX(H:H,$E200) -> 0 | I200: =INDEX(I:I,$E200) -> 0 | J200: =INDEX(J:J,$E200) -> 0 | K200: =INDEX(K:K,$E200) -> 0 | L200: =INDEX(L:L,$E200) -> 0 | M200: =INDEX(M:M,$E200) -> 0 | N200: =INDEX(N:N,$E200) -> 0 | O200: =INDEX(O:O,$E200) -> 0
C201: =INDEX(C:C,E201) -> Return on Investment | D201: 20 | E201: 178 | G201: =INDEX(G:G,$E201) -> -0.08510427088 | H201: =INDEX(H:H,$E201) -> -0.1073422381 | I201: =INDEX(I:I,$E201) -> -0.124169096 | J201: =INDEX(J:J,$E201) -> -0.2522054097 | K201: =INDEX(K:K,$E201) -> -0.1240110225 | L201: =INDEX(L:L,$E201) -> -0.1303874149 | M201: =INDEX(M:M,$E201) -> -0.05731936064 | N201: =INDEX(N:N,$E201) -> 0.06426359443 | O201: =INDEX(O:O,$E201) -> 0.06881279031
C203: Code Number | D203: 17 | E203: =D203+181 -> 198
C206: =INDEX(C:C,$E$203) -> Debt to EBIDTA | G206: =INDEX(G:G,$E$203) -> 0 | H206: =INDEX(H:H,$E$203) -> 0 | I206: =INDEX(I:I,$E$203) -> 0 | J206: =INDEX(J:J,$E$203) -> 0 | K206: =INDEX(K:K,$E$203) -> 0 | L206: =INDEX(L:L,$E$203) -> 15 | M206: =INDEX(M:M,$E$203) -> 15 | N206: =INDEX(N:N,$E$203) -> 6.075229683 | O206: =INDEX(O:O,$E$203) -> 4.700536417
G208: =IF(G206,G2,NA()) ->  | H208: =IF(H206,H2,NA()) ->  | L208: 2020 | M208: 2021 | N208: 2022 | O208: 2023
C209: History | G209: =IF(G3,G206) -> 0 | H209: =IF(H3,H206) -> 0 | I209: 0 | J209: 0 | K209: 0 | L209: FALSE | M209: FALSE | N209: FALSE | O209: FALSE
C210: Projection | G210: =IF(NOT(G3),G206) -> FALSE | H210: FALSE | I210: FALSE | J210: FALSE | K210: FALSE | L210: 15 | M210: 15 | N210: 6.075229683 | O210: 4.700536417

Sheet Analysis
I2: ='Assumptions and Working'!$F$208 -> 13

Sheet Scenarios
D3: Code Number | F3: 1 | Y3: INDEX | AA3: Reset or Combo
F4: Company Case | G4: Bank Base Case | H4: Bank Downside Case | I4: Sensitivity Case | J4: =TRANSPOSE(D5:D11)&" Company Case" -> Solar Growth Company Case | K4: Capital Expenditure Company Case | L4: Solar COGS Company Case | M4: SG&A Company Case | N4: Overheads Company Case | O4: Inventory Company Case | P4: CL as % of Expense Company Case | Q4: =TRANSPOSE(D5:D11)&H4 -> Solar Growth Bank Downside Case | R4: Capital Expenditure Bank Downside Case | S4: Solar COGS Bank Downside Case | T4: SG&A Bank Downside Case | U4: Overheads Bank Downside Case | V4: Inventory Bank Downside Case | W4: CL as % of Expense Bank Downside Case | Y4: =INDEX(F4:W4,$F$3) -> Company Case | AA4: Applied Case
D5: Solar Growth | F5: 1 | G5: 2 | H5: 3 | I5: 4 | J5: =F5 -> 1 | K5: 2 | L5: 2 | M5: 2 | N5: 2 | O5: 2 | P5: 2 | Q5: =H5 -> 3 | R5: 2 | S5: 2 | T5: 2 | U5: 2 | V5: 2 | W5: 2 | X5: =D5&" Scenario" -> Solar Growth Scenario | Y5: =INDEX(F5:W5,$F$3) -> 1 | Z5: =D5&" Applied" -> Solar Growth Applied | AA5: 1
D6: Capital Expenditure | F6: 1 | G6: 2 | H6: 3 | I6: 4 | J6: 2 | K6: =F6 -> 1 | L6: 2 | M6: 2 | N6: 2 | O6: 2 | P6: 2 | Q6: 2 | R6: =H6 -> 3 | S6: 2 | T6: 2 | U6: 2 | V6: 2 | W6: 2 | X6: =D6&" Scenario" -> Capital Expenditure Scenario | Y6: =INDEX(F6:W6,$F$3) -> 1 | Z6: =D6&" Applied" -> Capital Expenditure Applied | AA6: 1
D7: Solar COGS | F7: 1 | G7: 2 | H7: 3 | I7: 4 | J7: 2 | K7: 2 | L7: =F7 -> 1 | M7: 2 | N7: 2 | O7: 2 | P7: 2 | Q7: 2 | R7: 2 | S7: =H7 -> 3 | T7: 2 | U7: 2 | V7: 2 | W7: 2 | X7: Solar COGS Scenario | Y7: =INDEX(F7:W7,$F$3) -> 1 | Z7: Solar COGS Applied | AA7: 1
D8: SG&A | F8: 1 | G8: 2 | H8: 3 | I8: 4 | J8: 2 | K8: 2 | L8: 2 | M8: =F8 -> 1 | N8: 2 | O8: 2 | P8: 2 | Q8: 2 | R8: 2 | S8: 2 | T8: =H8 -> 3 | U8: 2 | V8: 2 | W8: 2 | X8: SG&A Scenario | Y8: =INDEX(F8:W8,$F$3) -> 1 | Z8: SG&A Applied | AA8: 1
D9: Overheads | F9: 1 | G9: 2 | H9: 3 | I9: 4 | J9: 2 | K9: 2 | L9: 2 | M9: 2 | N9: =F9 -> 1 | O9: 2 | P9: 2 | Q9: 2 | R9: 2 | S9: 2 | T9: 2 | U9: =H9 -> 3 | V9: 2 | W9: 2 | X9: Overheads Scenario | Y9: =INDEX(F9:W9,$F$3) -> 1 | Z9: Overheads Applied | AA9: 1
D10: Inventory | F10: 1 | G10: 2 | H10: 3 | I10: 4 | J10: 2 | K10: 2 | L10: 2 | M10: 2 | N10: 2 | O10: =F10 -> 1 | P10: 2 | Q10: 2 | R10: 2 | S10: 2 | T10: 2 | U10: 2 | V10: =H10 -> 3 | W10: 2 | X10: Inventory Scenario | Y10: =INDEX(F10:W10,$F$3) -> 1 | Z10: Inventory Applied | AA10: 1
D11: CL as % of Expense | F11: 1 | G11: 2 | H11: 3 | I11: 4 | J11: 2 | K11: 2 | L11: 2 | M11: 2 | N11: 2 | O11: 2 | P11: =F11 -> 1 | Q11: 2 | R11: 2 | S11: 2 | T11: 2 | U11: 2 | V11: 2 | W11: =H11 -> 3 | X11: CL as % of Expense Scenario | Y11: =INDEX(F11:W11,$F$3) -> 1 | Z11: CL as % of Expense Applied | AA11: 1
D12: Cooking Revenue | F12: 1 | G12: 2 | H12: 3 | I12: 4 | J12: 2 | K12: 2 | L12: 2 | M12: 2 | N12: 2 | O12: 2 | P12: 2 | Q12: 2 | R12: 2 | S12: 2 | T12: 2 | U12: 2 | V12: 2 | W12: 2 | X12: Cooking Revenue Scenario | Y12: =INDEX(F12:W12,$F$3) -> 1 | Z12: Cooking Revenue Applied | AA12: 1
D13: Cooking Cap Exp | F13: 1 | G13: 2 | H13: 3 | I13: 4 | J13: 2 | K13: 2 | L13: 2 | M13: 2 | N13: 2 | O13: 2 | P13: 2 | Q13: 2 | R13: 2 | S13: 2 | T13: 2 | U13: 2 | V13: 2 | W13: 2 | X13: Cooking Cap Exp Scenario | Y13: =INDEX(F13:W13,$F$3) -> 1 | Z13: Cooking Cap Exp Applied | AA13: 1
D14: Cooking COGS | F14: 1 | G14: 2 | H14: 3 | I14: 4 | J14: 2 | K14: 2 | L14: 2 | M14: 2 | N14: 2 | O14: 2 | P14: 2 | Q14: 2 | R14: 2 | S14: 2 | T14: 2 | U14: 2 | V14: 2 | W14: 2 | X14: Cooking COGS Scenario | Y14: =INDEX(F14:W14,$F$3) -> 1 | Z14: Cooking COGS Applied | AA14: 1
F15: 1 | G15: 2 | H15: 3 | I15: 4 | J15: 5 | K15: 6 | L15: 7 | M15: 8 | N15: 9 | O15: 10 | P15: 11 | Q15: 12 | R15: 13 | S15: 14 | T15: 15 | U15: 16 | V15: 17 | W15: 18
D16: Debt to EBITDA | E16: =Forecast!O174 -> 4.700536417 | F16: 4.933260531 | G16: 11.56382029 | H16: 15 | I16: 15 | J16: 8.506004013 | K16: 10.60650931 | L16: 10.77563939 | M16: 9.624348804 | N16: 9.83235873 | O16: 10.76713795 | P16: 12.86224296 | Q16: 13.3799293 | R16: 12.3746687 | S16: 14.22053325 | T16: 15 | U16: 14.92584883 | V16: 12.00405804 | W16: 11.74575253
D17: Debt to Capital | E17: =Forecast!O167 -> 1.547292736 | F17: 1.620079259 | G17: 1.919348017 | H17: 2.65684391 | I17: 2.887400891 | J17: 1.544103885 | K17: 2.101056382 | L17: 1.899572144 | M17: 1.87777893 | N17: 1.883809361 | O17: 2.048641318 | P17: 1.843064985 | Q17: 2.165627385 | R17: 1.953896192 | S17: 1.96874701 | T17: 1.989690065 | U17: 1.996743511 | V17: 1.879430054 | W17: 1.90671378
D18: New Loan Balance | E18: =Forecast!O156 -> 29375909.42 | F18: 31542502.08 | G18: 28075165.11 | H18: 23598472.89 | I18: 22715651.25 | J18: 39358410.05 | K18: 24780894.87 | L18: 27653542.05 | M18: 27232243.61 | N18: 27359289.17 | O18: 25333645.4 | P18: 32543258.79 | Q18: 23631274.02 | R18: 30865432.67 | S18: 29111321.9 | T18: 29513715.88 | U18: 29764025.93 | V18: 29590098.21 | W18: 28701224.96
D20: Code Number | E20: 1
D21: =INDEX(D16:D18,$E$20) -> Debt to EBITDA | E21: =INDEX(E16:E18,$E$20) -> 4.700536417 | F21: =INDEX(F16:F18,$E$20) -> 4.933260531 | G21: =INDEX(G16:G18,$E$20) -> 11.56382029 | H21: =INDEX(H16:H18,$E$20) -> 15 | I21: =INDEX(I16:I18,$E$20) -> 15 | J21: =INDEX(J16:J18,$E$20) -> 8.506004013 | K21: =INDEX(K16:K18,$E$20) -> 10.60650931 | L21: =INDEX(L16:L18,$E$20) -> 10.77563939 | M21: =INDEX(M16:M18,$E$20) -> 9.624348804 | N21: =INDEX(N16:N18,$E$20) -> 9.83235873 | O21: =INDEX(O16:O18,$E$20) -> 10.76713795 | P21: =INDEX(P16:P18,$E$20) -> 12.86224296 | Q21: =INDEX(Q16:Q18,$E$20) -> 13.3799293 | R21: =INDEX(R16:R18,$E$20) -> 12.3746687 | S21: =INDEX(S16:S18,$E$20) -> 14.22053325 | T21: =INDEX(T16:T18,$E$20) -> 15 | U21: =INDEX(U16:U18,$E$20) -> 14.92584883 | V21: =INDEX(V16:V18,$E$20) -> 12.00405804 | W21: =INDEX(W16:W18,$E$20) -> 11.74575253
E23: =TRANSPOSE(D5:D10) -> Solar Growth | F23: Capital Expenditure | G23: Solar COGS | H23: SG&A | I23: Overheads | J23: Inventory
D24: Company vs Base | E24: =J21-$G$21 -> -3.057816281 | F24: =K21-$G$21 -> -0.9573109852 | G24: -0.7881809037 | H24: -1.93947149 | I24: -1.731461564 | J24: -0.7966823439
D25: Downside vs Base | E25: =Q21-$G$21 -> 1.816109011 | F25: =R21-$G$21 -> 0.8108484099 | G25: 2.656712957 | H25: 3.436179706 | I25: 3.362028538 | J25: 0.4402377422
D26: Absolute Value | E26: =ABS(E24)+ABS(E25) -> 4.873925292 | F26: =ABS(F24)+ABS(F25) -> 1.768159395 | G26: 3.44489386 | H26: 5.375651196 | I26: 5.093490102 | J26: 1.236920086
E28: 1 | F28: 2 | G28: 3 | H28: 4 | I28: 5 | J28: 6
D29: =D26 -> Absolute Value | E29: =SMALL($E$26:$J$26,E28) -> 1.236920086 | F29: =SMALL($E$26:$J$26,F28) -> 1.768159395 | G29: 3.44489386 | H29: 4.873925292 | I29: 5.093490102 | J29: 5.375651196
D31: Match Value | E31: =MATCH(E29,$E$26:$J$26,0) -> 6 | F31: =MATCH(F29,$E$26:$J$26,0) -> 2 | G31: 3 | H31: 1 | I31: 5 | J31: 4
E32: =INDEX($E$23:$K$23,E31) -> Inventory | F32: =INDEX($E$23:$K$23,F31) -> Capital Expenditure | G32: =INDEX($E$23:$K$23,G31) -> Solar COGS | H32: =INDEX($E$23:$K$23,H31) -> Solar Growth | I32: =INDEX($E$23:$K$23,I31) -> Overheads | J32: =INDEX($E$23:$K$23,J31) -> SG&A
D33: =D24 -> Company vs Base | E33: =INDEX($E$24:$J$24,E31) -> -0.7966823439 | F33: =INDEX($E$24:$J$24,F31) -> -0.9573109852 | G33: =INDEX($E$24:$J$24,G31) -> -0.7881809037 | H33: =INDEX($E$24:$J$24,H31) -> -3.057816281 | I33: =INDEX($E$24:$J$24,I31) -> -1.731461564 | J33: =INDEX($E$24:$J$24,J31) -> -1.93947149
D34: =D25 -> Downside vs Base | E34: =INDEX($E$25:$J$25,E31) -> 0.4402377422 | F34: =INDEX($E$25:$J$25,F31) -> 0.8108484099 | G34: =INDEX($E$25:$J$25,G31) -> 2.656712957 | H34: =INDEX($E$25:$J$25,H31) -> 1.816109011 | I34: =INDEX($E$25:$J$25,I31) -> 3.362028538 | J34: =INDEX($E$25:$J$25,J31) -> 3.436179706
Z44: Capital_Expenditure_Applied
Z45: Capital_Expenditure_Scenario
D46: =TRANSPOSE(F4:W4) -> Company Case | Z46: CL_as___of_Expense_Applied
D47: Bank Base Case | Z47: CL_as___of_Expense_Scenario
D48: Bank Downside Case | Z48: Cooking_Cap_Exp_Applied
D49: Sensitivity Case | Z49: Cooking_Cap_Exp_Scenario
D50: Solar Growth Company Case | Z50: Cooking_COGS_Applied
D51: Capital Expenditure Company Case | Z51: Cooking_COGS_Scenario
D52: Solar COGS Company Case | Z52: Cooking_Revenue_Applied
D53: SG&A Company Case | Z53: Cooking_Revenue_Scenario
D54: Overheads Company Case | Z54: Inventory_Applied
D55: Inventory Company Case | Z55: Inventory_Scenario
D56: CL as % of Expense Company Case | Z56: Overheads_Applied
D57: Solar Growth Bank Downside Case | Z57: Overheads_Scenario
D58: Capital Expenditure Bank Downside Case | Z58: SG_A_Applied
D59: Solar COGS Bank Downside Case | Z59: SG_A_Scenario
D60: SG&A Bank Downside Case | Z60: Solar_COGS_Applied
D61: Overheads Bank Downside Case | Z61: Solar_COGS_Scenario
D62: Inventory Bank Downside Case | Z62: Solar_Growth_Applied
D63: CL as % of Expense Bank Downside Case | Z63: Solar_Growth_Scenario

Sheet Financial Statements
E2: 2017 | F2: 2018 | H2: =E2 -> 2017 | I2: =F2 -> 2018
D3: FRW’ FRW’
D4: Revenue | E4: 2010420 | F4: 3791188 | H4: =H68*H57/1000 -> 1663019.307 | I4: =I68*I57/1000 -> 2799031.761
D5: Cost of sales | E5: -1172423 | F5: -3195429 | H5: =H57*H81/1000 -> -1195697.391 | I5: =I57*I81/1000 -> -3010631.116
D6: Gross profit | E6: 837997 | F6: 595759 | H6: =H4+H5 -> 467321.9157 | I6: =I4+I5 -> -211599.3551
D7: Other income | E7: 512589 | F7: 32477
D8: Personnel expenses | E8: -974499 | F8: -908574
D9: Depreciation expenses | E9: -53865 | F9: -53181
D10: Administrative expenses | E10: -1381638 | F10: -2546319
D11: Operating expenses | E11: -192660 | F11: -211123 | H11: =H57*H123/1000 -> -1354561.04 | I11: =I57*I123/1000 -> -2504424.511
D12: Results from operating activities | E12: -1252076 | F12: -3090961 | H12: =H6+H11 -> -887239.1246 | I12: =I6+I11 -> -2716023.866
D13: Net finance costs | E13: -352574 | F13: -875160
D14: Loss before income tax | E14: -1604650 | F14: -3966121
D15: Income tax charge | E15: -751414 | F15: -667023
D16: Loss for the year | E16: -2356064 | F16: -4633144
D17: Other comprehensive income | E17: 0 | F17: 0
D18: Total comprehensive loss | E18: -2356064 | F18: -4633144 | H18: =H137*H57/1000 -> -311104.6113 | I18: =I137*I57/1000 -> -4581812.435
D20: EBITDA | E20: =E12+E27+E28+E29+E30 -> -657053 | F20: =F12+F27+F28+F29+F30 -> -2141296 | H20: =H114*H57/1000 -> -431396.1868 | I20: =I114*I57/1000 -> -1883412.151
D23: FRW' FRW'
D24: Operating activities
D25: Loss for the year before tax | E25: -1604650 | F25: -3966121
D26: Adjustments for:
D27: Depreciation | E27: 51886 | F27: 53181
D28: Amortisation | E28: 1979 | F28: 86
D29: Depreciation for operating lease assets | E29: 536932 | F29: 896398 | H29: =H118*H57/1000 -> -439901.0417 | I29: =I118*I57/1000 -> -779399.5255
D30: PPE write offs | E30: 4226 | F30: 0
D31: Intangible write offs | E31: 0 | F31: 30
D32: Cash generated before changes in working capital | E32: -1009626 | F32: -3016426
D33: Changes in working capital | E33: -1729685 | F33: 2661331
D34: Cash used in/generated from operating activities | E34: 2739312 | F34: -355095
D35: Tax paid | E35: 0 | F35: 0
D36: Net cash generated from operating activities | E36: 2739312 | F36: -355095
D37: Investing activities
D38: Purchase of fixed assets | E38: -59000 | F38: -32362
D39: Proceeds from sale of fixed assets | E39: 1138881 | F39: 0
D40: Purchase of operating lease assets | E40: -5000623 | F40: -2634493
D41: Net cash used in investing activities | E41: -3920742 | F41: -2666855
D42: Financing activities
D43: Proceeds from loans | E43: 3882545 | F43: 3523736
D44: Proceeds from issue of share capital | E44: 3244000 | F44: 0
D45: Net cash from financing activities | E45: 7126545 | F45: 3523736
D46: Net increase in cash and cash equivalents | E46: 466314 | F46: 501786
D47: Cash and cash equivalents at January | E47: 169171 | F47: 635661
D48: Cash and cash equivalents at December | E48: 635661 | F48: 1137447
B52: Month end date
C53: Country: | D53: RWANDA | E53: Forecast V18
C55: Month | F55: 42005
C56: Year | F56: 2015 | G56: 2016 | H56: 2017 | I56: 2018 | J56: 2019
C57: RWF to USD | F57: 823.935 | G57: 763.5104167 | H57: 710.575 | I57: 860.2752054 | J57: 895.711
C58: Currency
B60: INCOME STATEMENT
C62: Revenue
C63: HPA Sales | F63: 1155269 | G63: 493794 | H63: 1989096.419 | I63: 3693472.368 | J63: 3350939.71
C64: Defaults | F64: 0 | G64: 0 | H64: 226875.9126 | I64: -1157509.236 | J64: -49498.97
C65: Discounts | F65: 0 | G65: 0 | H65: 0 | I65: 0 | J65: 0
C66: Upfront sales | F66: 0 | G66: 0 | H66: 124413 | I66: 717683.7757 | J66: 176369.01
C67: Minigrid Revenue | F67: 0 | G67: 0 | H67: 0 | I67: 0 | J67: 0
C68: Total Revenue | F68: 1155269 | G68: 493794 | H68: 2340385.331 | I68: 3253646.907 | J68: 3477809.75
F69: 0 | G69: 0 | H69: 0 | I69: 0 | J69: 0
C70: Cost of Sales | F70: 0 | G70: 0 | H70: 0 | I70: 0 | J70: 0
C71: Depreciation HPA Assets | F71: 0 | G71: -114878 | H71: -619077.5664 | I71: -905988.596 | J71: -1092404.25
C72: Installation | F72: 0 | G72: -41041 | H72: -135303.6467 | I72: -88033.9246 | J72: -46218.26
C73: Import Duties | F73: 0 | G73: -177654 | H73: -495981.9256 | I73: -534335.9831 | J73: -10370.23
C74: Freight Costs | F74: 0 | G74: 0 | H74: 0 | I74: -29945.5 | J74: -548322.3
C75: Stock Uplift Adjustment | F75: 0 | G75: 0 | H75: 0 | I75: 522415.4444 | J75: 518009.95
C76: Repossession | F76: 0 | G76: -7938 | H76: -17217.50909 | I76: -45555.9568 | J76: -14389.03
C77: Bad debt written off due to repossession | F77: 0 | G77: -102333 | H77: -139344.2646 | I77: 0 | J77: 0
C78: Maintenance | F78: 0 | G78: 0 | H78: -164352.2219 | I78: -810494.3875 | J78: -430920.84
C79: Data | F79: 0 | G79: -61848 | H79: -2706.995188 | I79: -835986.5135 | J79: -592473.2
C80: Upfront Sales Cost | F80: -612917 | G80: -62234 | H80: -108733.9384 | I80: -771688.5407 | J80: -146836.84
C81: Cost of Sales | F81: -612917 | G81: -567926 | H81: -1682718.068 | I81: -3499613.958 | J81: -2363925
C83: Gross profit | F83: 542352 | G83: -74132 | H83: 657667.2634 | I83: -245967.0507 | J83: 1113884.75
C84: Gross margin | F84: 2.552960972 | G84: -25.90237635 | H84: 2.58298879 | I84: -2.293501363
C86: SG&A Costs
C87: Salaries & Wages: Shops | F87: 0 | G87: 0 | H87: -801683 | I87: -538661.7516 | J87: -368764.42
C88: Shops Running Costs | F88: 0 | G88: 0 | H88: -362306.6048 | I88: -357824.4776 | J88: -97990.29
C89: Salaries & Wages: Logistics center | F89: 0 | G89: 0 | H89: 0 | I89: -10810.82 | J89: -108042.54
C90: Logistics center Running Costs | F90: 0 | G90: 0 | H90: 0 | I90: -18593.46 | J90: -146985.44
C91: Salaries & Wages: Call Center | F91: 0 | G91: 0 | H91: -98529 | I91: -127611.7804 | J91: -120471.76
C92: Call Center Running Costs | F92: 0 | G92: 0 | H92: 0 | I92: -139520.5962 | J92: -122487.86
C93: Sales Commission & Agent Costs | F93: 0 | G93: -65688 | H93: -156554.0715 | I93: -203341.0807 | J93: -153785.14
C94: Reduction in SG&A due to overhead absorption | F94: 0 | G94: 0 | H94: 523431 | I94: 0 | J94: 0
C95: Total SG&A | F95: 0 | G95: -243342 | H95: -1391623.602 | I95: -1423915.755 | J95: -1118527.45
C97: Overheads
C98: Salaries & Wages: Management & Support | F98: -564371 | G98: -1257925 | H98: 0 | I98: -356660.9618 | J98: -392751.88
C99: Legal & Professional | F99: -28335 | G99: -52814 | H99: -55768.34595 | I99: -213796.2823 | J99: -107917.49
C100: Property | F100: -47836 | G100: -58249 | H100: -115980.85 | I100: -65875.06976 | J100: -42616.13
C101: Travel | F101: 0 | G101: 0 | H101: -77130 | I101: -185892.7247 | J101: -109309.3
C102: Communications | F102: -4647 | G102: -10125 | H102: 0 | I102: -56239.51365 | J102: -20954.87
C103: Insurance | F103: -9568 | G103: -35678 | H103: -57584 | I103: -138806.8088 | J103: -95985.38
C104: Marketing, Conferences & Events | F104: 0 | G104: 0 | H104: -57799.97761 | I104: -106664.1461 | J104: -92877.39
C105: Training | F105: 0 | G105: 0 | H105: -20361.36558 | I105: -59864.86109 | J105: -24384.86
C106: Office Consumables | F106: 0 | G106: 0 | H106: 0 | I106: -4448.922617 | J106: -7214.88
C107: Mobile Money Charges | F107: 0 | G107: 0 | H107: 0 | I107: -122010.9466 | J107: -78345.15
C108: Bank Charges | F108: 0 | G108: 0 | H108: 0 | I108: -26402.84293 | J108: -24817.55
C109: Shared services | F109: 0 | G109: 0 | H109: 0 | I109: 0 | J109: -19917.43
C110: Other Admin Expenses | F110: -198220 | G110: -382469 | H110: -107605.2793 | I110: -88672.1042 | J110: -66756.07
C111: Stock write off | F111: 0 | G111: 0 | H111: 0 | I111: -84.14 | J111: -651033.95
C112: Total Overheads | F112: -852977 | G112: -1797260 | H112: -492229.8185 | I112: -1425419.325 | J112: -1734882.33
C114: EBITDA | F114: -310625 | G114: -1999856 | H114: -607108.5907 | I114: -2189313.535 | J114: -647120.78
C115: EBITDA margin | F115: -9.113799953 | G115: -140.3021256 | H115: -6.281512235 | I115: -4.836765114
F116: 0 | G116: 0 | H116: 0 | I116: 0 | J116: 0
C117: Depreciation | F117: 0 | G117: 0 | H117: 0 | I117: 0 | J117: 0
C118: Depreciation HPA Assets | F118: 0 | G118: -114878 | H118: -619077.5664 | I118: -905988.596 | J118: -1092404.25
C119: Depreciation Fixtures and Fittings | F119: -16812 | G119: -48697 | H119: -22435.20544 | I119: -61854.84548 | J119: -46025.3
C120: Total Depreciation | F120: -16812 | G120: -163575 | H120: -641512.7718 | I120: -967843.4414 | J120: -1138429.55
F121: 0 | G121: 0 | H121: 0 | I121: 0 | J121: 0
C122: Operating Profit | F122: -327437 | G122: -1985777 | H122: -752639.4368 | I122: -3129605.187 | J122: -1785550.33
C123: Total Other Expenses | F123: =F95+F112+F119 -> -869789 | G123: =G95+G112+G119 -> -2089299 | H123: =H95+H112+H119 -> -1906288.626 | I123: =I95+I112+I119 -> -2911189.925 | J123: =J95+J112+J119 -> -2899435.08
C125: Finance income and expenses
C126: Other Income | F126: -5 | G126: 0 | H126: 691314 | I126: -1854.064466 | J126: 9194.32
C127: Finance cost | F127: -7606 | G127: -16258 | H127: -376495.4988 | I127: -996195.7471 | J127: -850297.44
C128: Finance cost - subordinated debt (BEYOND) | F128: 0 | G128: 0 | H128: 0 | I128: -19813.29 | J128: -1033792.14
C129: Unrealized FX gain / (loss) | F129: 0 | G129: 0 | H129: 0 | I129: -419759.78 | J129: -662542.56
C130: Total finance income/(expenses) | F130: 0 | G130: 0 | H130: 0 | I130: -503825.66 | J130: -2537437.82
F131: 0 | G131: 0 | H131: 0 | I131: 0 | J131: 0
F132: 0 | G132: 0 | H132: 0 | I132: 0 | J132: 0
C133: Profit before Tax | F133: -335048 | G133: -2002035 | H133: -437820.9356 | I133: -4567228.069 | J133: -4322988.15
F134: 0 | G134: 0 | H134: 0 | I134: 0 | J134: 0
C135: Tax | F135: -3134 | G135: -18823 | H135: 0 | I135: -758756.46 | J135: 0
F136: 0 | G136: 0 | H136: 0 | I136: 0 | J136: 0
C137: Net Income | F137: -338182 | G137: -2020858 | H137: -437820.9356 | I137: -5325984.529 | J137: -4322988.15
C138: Check
B140: BALANCE SHEET | H140: =H148-G148 -> 0 | I140: =I148-H148 -> 513328.97 | J140: =J148-I148 -> 486084.75
H141: =H146-G146 -> 3918294.686 | I141: =I146-H146 -> 3344922.014 | J141: =J146-I146 -> -612766.95
C142: Fixed Assets: | H142: =H141*H57/1000 -> 2784242.247 | I142: =I141*I57/1000 -> 2877553.472 | J142: =J141*J57/1000 -> -548862.0976
C143: Intangible fixed assets | F143: 606 | G143: 513 | H143: 243.9183432 | I143: 0 | J143: 0
C144: Fixtures and Fittings | F144: 65740 | G144: 61095 | H144: 119788.6047 | I144: 238363.86 | J144: 271181.94
C145: Accumulated Depreciation F&F | F145: 0 | G145: 0 | H145: 0 | I145: -155852.74 | J145: -136214.48
C146: HQ Capitalised Power Units | F146: 0 | G146: 1521823 | H146: 5440117.686 | I146: 8785039.7 | J146: 8172272.75
C147: Accumulated Depreciation PU | F147: 0 | G147: 0 | H147: 0 | I147: -807448.04 | J147: -1261794.34
C148: HQ Capitalised Appliances | F148: 0 | G148: 0 | H148: 0 | I148: 513328.97 | J148: 999413.72
C149: Accumulated Depreciation CA | F149: 0 | G149: 0 | H149: 0 | I149: -935783.33 | J149: -1152506.84
C150: Investments | F150: 0 | G150: 0 | H150: 0 | I150: 0 | J150: 0
C151: Total Fixed Assets | F151: 66346 | G151: 1583431 | H151: 5560150.209 | I151: 7637648.42 | J151: 6892352.75
C153: Current Assets:
C154: Inventory and Work in Progress | F154: 325268 | G154: 3879248 | H154: 2744031 | I154: 1224016.84 | J154: 3656766.04
C155: Trade Receivables | F155: 1142515 | G155: 431317 | H155: 372006 | I155: 500678.01 | J155: 431947.52
C156: Prepayments | F156: 54970 | G156: 95599 | H156: 158884.697 | I156: 153267.52 | J156: 794051.95
C157: Cash at Bank | F157: 37480 | G157: 246913 | H157: 808794 | I157: 1293875.8 | J157: 670780.36
C158: Other Debtors | F158: 468 | G158: 427 | H158: 0 | I158: 0 | J158: 11841.63
C159: Total Current Assets | F159: 1560701 | G159: 4653504 | H159: 4083715.697 | I159: 3171838.17 | J159: 5565387.5
C161: Current Liabilities:
C162: Trade Payables | F162: -22704 | G162: -34657 | H162: -105618.9467 | I162: -187655.5 | J162: -176617.06
C163: Payroll taxes | F163: -34909 | G163: -35712 | H163: 85629.12071 | I163: -8571.88 | J163: -9048.34
C164: VAT payable | F164: 0 | G164: 0 | H164: 0 | I164: -88099.62 | J164: -164778.21
C165: Import taxes | F165: 0 | G165: 0 | H165: 0 | I165: 145241.26 | J165: 276375.96
C166: Corporation Tax Creditor | F166: 0 | G166: -1 | H166: 0 | I166: -1893907.19 | J166: -1821512.7
C167: Accruals | F167: -1143 | G167: -529 | H167: -142799.3065 | I167: -247622.66 | J167: -351370.72
C168: Deferred income | F168: 0 | G168: 0 | H168: 0 | I168: -221779.86 | J168: -272356.09
C169: Interest Accruals | F169: 0 | G169: 0 | H169: 0 | I169: -150299.75 | J169: -157845.24
C170: Interest Accruals - subordinated debt (BEYOND) | F170: 0 | G170: 0 | H170: 0 | I170: -19889.38 | J170: -1055863.93
C171: Total Current Liabilities | F171: -58756 | G171: -70899 | H171: -162789.1325 | I171: -2672584.58 | J171: -3733016.33
C173: Net Current Assets | F173: 1501945 | G173: 4582605 | H173: 3920926.564 | I173: 499253.59 | J173: 1832371.17
C175: BBOXX Ltd Intercompany | F175: 0 | G175: 0 | H175: 0 | I175: 1226082.29 | J175: 1910339.28
C176: BBOXX Capital Ltd | F176: 0 | G176: 0 | H176: 0 | I176: 221592.39 | J176: 142898.03
C177: BBOXX Capital Kenya Intercompany | F177: 0 | G177: 0 | H177: 0 | I177: -143437.08 | J177: -2531.25
C178: BBOXX Capital Asia Intercompany | F178: 0 | G178: 0 | H178: 0 | I178: -9307421.26 | J178: -9227890.45
C179: BBOXX Africa Management Intercompany | F179: 0 | G179: 0 | H179: 0 | I179: 131425.67 | J179: 123085.03
C180: BBOXX DRC Intercompany | F180: 0 | G180: 0 | H180: 0 | I180: 323302.33 | J180: 104700.67
C181: Intercompany Accrual - BBOXX Ltd. | F181: 0 | G181: 0 | H181: 0 | I181: 0 | J181: -56836.33
C182: Intercompany Creditor Balances | F182: -2244298 | G182: -7305778 | H182: -5359545 | I182: -7548455.66 | J182: -7006235.02
C184: Borrowings:
C185: Loans | F185: 0 | G185: 0 | H185: -4522177.637 | I185: -910967.71 | J185: -4268121.42
C186: Beyond Loan | F186: 0 | G186: 0 | H186: 0 | I186: -2441646.77 | J186: -7449789.75
C187: Deutsche Bank | F187: 0 | G187: 0 | H187: 0 | I187: -5072220.95 | J187: -1777628.05
C188: Total Borrowings | F188: 0 | G188: 0 | H188: -4522177.637 | I188: -8424835.43 | J188: -13495539.22
F189: 0 | G189: 0 | H189: 0 | I189: 0 | J189: 0
C190: Net Assets | F190: -676007 | G190: -1139742 | H190: -400645.8627 | I190: -7836389.08 | J190: -11777050.32
F191: 0 | G191: 0 | H191: 0 | I191: 0 | J191: 0
C192: Represented By: | F192: 0 | G192: 0 | H192: 0 | I192: 0 | J192: 0
C193: Share Capital | F193: 0 | G193: -165854 | H193: -4164848.485 | I193: -3844837.49 | J193: -3697868.8
C194: Retained Earnings | F194: 676006 | G194: 1305595 | H194: 4565493.936 | I194: 10313373.18 | J194: 14965175.14
C195: Retained Earnings | D195: P&L | F195: 0 | G195: 0 | H195: 0 | I195: 1367853.37 | J195: 509743.97
C196: Shareholders' funds | F196: 676006 | G196: 1139741 | H196: 400645.4508 | I196: 7836389.06 | J196: 11777050.31
C197: Check | F197: 0 | G197: 0 | H197: 0 | I197: -0.02000000235 | J197: -0.009999996051
C198: Check 2 | F198: 0 | G198: 0 | H198: 0 | I198: 0 | J198: 0
B200: CASH FLOW STATEMENT - DIRECT
C202: Cash flows from operating activities | F202: 0 | G202: 0 | H202: 0 | I202: 0 | J202: 0
C203: Revenue | F203: 0 | G203: 0 | H203: 0 | I203: -362461.58 | J203: 3379151.54
C204: Decrease/(increase) in trade receivables | F204: 0 | G204: 0 | H204: 0 | I204: 827761.53 | J204: 68730.49
C205: Decrease/(increase) in intercompany DRC | F205: 0 | G205: 0 | H205: 0 | I205: -177616.97 | J205: 162456.87
C206: Increase/(decrease) in VAT payable | F206: 0 | G206: 0 | H206: 0 | I206: 6382.85 | J206: 76678.59
C207: Increase/(decrease) in deferred income | F207: 0 | G207: 0 | H207: 0 | I207: -596.58 | J207: 50576.23
C208: Cash receipts | F208: 0 | G208: 0 | H208: 0 | I208: 293469.25 | J208: 3737593.72
F209: 0 | G209: 0 | H209: 0 | I209: 0 | J209: 0
C210: Cost of Sales | F210: 0 | G210: 0 | H210: 0 | I210: 0 | J210: 0
C211: Installation | F211: 0 | G211: 0 | H211: 0 | I211: -2835.8 | J211: -46218.26
C212: Repossession | F212: 0 | G212: 0 | H212: 0 | I212: -3909.39 | J212: -14389.03
C213: Bad debt written off due to repossession | F213: 0 | G213: 0 | H213: 0 | I213: 0 | J213: 0
C214: Data | F214: 0 | G214: 0 | H214: 0 | I214: 491669.91 | J214: -607605.76
C215: Upfront Sales Cost | F215: 0 | G215: 0 | H215: 0 | I215: 0 | J215: 0
C216: Increase/(decrease) in intercompany accrual | F216: 0 | G216: 0 | H216: 0 | I216: -773750.83 | J216: 171541.36
C217: Cost of Sales | F217: 0 | G217: 0 | H217: 0 | I217: -288826.11 | J217: -496671.69
F218: 0 | G218: 0 | H218: 0 | I218: 0 | J218: 0
C219: SG&A Costs | F219: 0 | G219: 0 | H219: 0 | I219: 0 | J219: 0
C220: Salaries & Wages: Shops | F220: 0 | G220: 0 | H220: 0 | I220: -43243.27 | J220: -368764.42
C221: Shops Running Costs | F221: 0 | G221: 0 | H221: 0 | I221: -12395.64 | J221: -97990.29
C222: Salaries & Wages: Logistics center | F222: 0 | G222: 0 | H222: 0 | I222: -10810.82 | J222: -108042.54
C223: Logistics center Running Costs | F223: 0 | G223: 0 | H223: 0 | I223: -18593.46 | J223: -146985.44
... 93 more rows

Sheet Simple Example
E4: 1 | F4: 2 | G4: 3 | H4: 4 | I4: 5 | J4: 6 | K4: 7 | L4: 8 | M4: 9 | N4: 10
C5: EBIDTA | E5: 100 | F5: 120 | G5: 130 | H5: 220 | I5: =H5 -> 220 | J5: 220 | K5: 220 | L5: 220 | M5: 220 | N5: 220
C6: CAPEX | E6: 300 | F6: 200 | G6: 200 | H6: 100 | I6: 100 | J6: 100 | K6: 100 | L6: 100 | M6: 100 | N6: 100
C7: Interest | E7: =E15 -> 0 | F7: =F15 -> 20 | G7: 30 | H7: 40 | I7: 32 | J7: 23.2 | K7: 13.52 | L7: 2.872 | M7: 0 | N7: 0
C8: Net Cashflow | E8: =E5-E6-E7 -> -200 | F8: =F5-F6-F7 -> -100 | G8: -100 | H8: 80 | I8: 88 | J8: 96.8 | K8: 106.48 | L8: 117.128 | M8: 120 | N8: 120
C10: Loan balance
C11: Opening Balance | E11: =D14 -> 0 | F11: =E14 -> 200 | G11: 300 | H11: 400 | I11: 320 | J11: 232 | K11: 135.2 | L11: 28.72 | M11: 0 | N11: 0
C12: Add borrowings | E12: =MAX(-E8,0) -> 200 | F12: =MAX(-F8,0) -> 100 | G12: 100 | H12: 0 | I12: 0 | J12: 0 | K12: 0 | L12: 0 | M12: 0 | N12: 0
C13: Less repayments | E13: =MIN(E11,MAX(E8,0)) -> 0 | F13: =MIN(F11,MAX(F8,0)) -> 0 | G13: 0 | H13: 80 | I13: 88 | J13: 96.8 | K13: 106.48 | L13: 28.72 | M13: 0 | N13: 0
C14: Closing balance | E14: =E11+E12-E13 -> 200 | F14: =F11+F12-F13 -> 300 | G14: 400 | H14: 320 | I14: 232 | J14: 135.2 | K14: 28.72 | L14: 0 | M14: 0 | N14: 0
C15: Interest | D15: 0.1 | E15: =$D$15*E11 -> 0 | F15: =$D$15*F11 -> 20 | G15: 30 | H15: 40 | I15: 32 | J15: 23.2 | K15: 13.52 | L15: 2.872 | M15: 0 | N15: 0
C17: Debt to EBIDTA
C18: EBIDTA to interest
K19: =E20 -> 8 | L19: 220 | M19: 250 | N19: 300 | O19: 350 | P19: 400 | Q19: 450
C20: Repayment Year | E20: =MATCH(0,E14:N14,0) -> 8 | K20: 120 | L20: 9 | M20: 7 | N20: 6 | O20: 6 | P20: 5 | Q20: 5
K21: 100 | L21: 8 | M21: 7 | N21: 6 | O21: 5 | P21: 5 | Q21: 5
K22: 80 | L22: 7 | M22: 6 | N22: 6 | O22: 5 | P22: 5 | Q22: 5
K23: 60 | L23: 7 | M23: 6 | N23: 5 | O23: 5 | P23: 5 | Q23: 5
